Workbook

Sheet Cover

Sheet Ranks & Ratings
A1: City | B1: GFCI 19 Rank | C1: GFCI 19 Rating | D1: GFCI 18 Rank | E1: GFCI 18 Rating | F1: Change in Rank | G1: Change in Rating | H1: Region
A2: London | B2: 1 | C2: 800 | D2: 1 | E2: 796 | F2: - | G2: ▲4 | H2: Western Europe
A3: New York | B3: 2 | C3: 792 | D3: 2 | E3: 788 | F3: - | G3: ▲4 | H3: North America
A4: Singapore | B4: 3 | C4: 755 | D4: 4 | E4: 750 | F4: ▲1 | G4: ▲5 | H4: Asia/Pacific
A5: Hong Kong | B5: 4 | C5: 753 | D5: 3 | E5: 755 | F5: ▼1 | G5: ▼2 | H5: Asia/Pacific
A6: Tokyo | B6: 5 | C6: 728 | D6: 5 | E6: 725 | F6: - | G6: ▲3 | H6: Asia/Pacific
A7: Zurich | B7: 6 | C7: 714 | D7: 7 | E7: 715 | F7: ▲1 | G7: ▼1 | H7: Western Europe
A8: Washington DC | B8: 7 | C8: 712 | D8: 10 | E8: 711 | F8: ▲3 | G8: ▲1 | H8: North America
A9: San Francisco | B9: 8 | C9: 711 | D9: 9 | E9: 712 | F9: ▲1 | G9: ▼1 | H9: North America
A10: Boston | B10: 9 | C10: 709 | D10: 12 | E10: 709 | F10: ▲3 | G10: - | H10: North America
A11: Toronto | B11: 10 | C11: 707 | D11: 8 | E11: 714 | F11: ▼2 | G11: ▼7 | H11: North America
A12: Chicago | B12: 11 | C12: 706 | D12: 11 | E12: 710 | F12: - | G12: ▼4 | H12: North America
A13: Seoul | B13: 12 | C13: 705 | D13: 6 | E13: 724 | F13: ▼6 | G13: ▼19 | H13: Asia/Pacific
A14: Dubai | B14: 13 | C14: 699 | D14: 16 | E14: 704 | F14: ▲3 | G14: ▼5 | H14: Middle East & Africa
A15: Luxembourg | B15: 14 | C15: 698 | D15: 19 | E15: 700 | F15: ▲5 | G15: ▼2 | H15: Western Europe
A16: Geneva | B16: 15 | C16: 694 | D16: 13 | E16: 707 | F16: ▼2 | G16: ▼13 | H16: Western Europe
A17: Shanghai | B17: 16 | C17: 693 | D17: 21 | E17: 698 | F17: ▲5 | G17: ▼5 | H17: Asia/Pacific
A18: Sydney | B18: 17 | C18: 692 | D18: 15 | E18: 705 | F18: ▼2 | G18: ▼13 | H18: Asia/Pacific
A19: Frankfurt | B19: 18 | C19: 689 | D19: 14 | E19: 706 | F19: ▼4 | G19: ▼17 | H19: Western Europe
A20: Shenzhen | B20: 19 | C20: 688 | D20: 23 | E20: 694 | F20: ▲4 | G20: ▼6 | H20: Asia/Pacific
A21: Osaka | B21: 20 | C21: 687 | D21: 20 | E21: 699 | F21: - | G21: ▼12 | H21: Asia/Pacific
A22: Montreal | B22: 21 | C22: 686 | D22: 17 | E22: 703 | F22: ▼4 | G22: ▼17 | H22: North America
A23: Vancouver | B23: 22 | C23: 684 | D23: 18 | E23: 702 | F23: ▼4 | G23: ▼18 | H23: North America
A24: Beijing | B24: 23 | C24: 682 | D24: 29 | E24: 676 | F24: ▲6 | G24: ▲6 | H24: Asia/Pacific
A25: Taipei | B25: 24 | C25: 677 | D25: 26 | E25: 686 | F25: ▲2 | G25: ▼9 | H25: Asia/Pacific
A26: Tel Aviv | B26: 25 | C26: 676 | D26: 25 | E26: 687 | F26: - | G26: ▼11 | H26: Middle East & Africa
A27: Abu Dhabi | B27: 26 | C27: 675 | D27: 28 | E27: 679 | F27: ▲2 | G27: ▼4 | H27: Middle East & Africa
A28: Munich | B28: 27 | C28: 672 | D28: 40 | E28: 661 | F28: ▲13 | G28: ▲11 | H28: Western Europe
A29: Calgary | B29: 28 | C29: 671 | D29: 39 | E29: 662 | F29: ▲11 | G29: ▲9 | H29: North America
A30: Los Angeles | B30: 29 | C30: 670 | D30: 49 | E30: 650 | F30: ▲20 | G30: ▲20 | H30: North America
A31: Melbourne | B31: 30 | C31: 669 | D31: 27 | E31: 685 | F31: ▼3 | G31: ▼16 | H31: Asia/Pacific
A32: Dalian | B32: 31 | C32: 668 | D32: 41 | E32: 660 | F32: ▲10 | G32: ▲8 | H32: Asia/Pacific
A33: Paris | B33: 32 | C33: 667 | D33: 37 | E33: 664 | F33: ▲5 | G33: ▲3 | H33: Western Europe
A34: Casablanca | B34: 33 | C34: 665 | D34: 44 | E34: 657 | F34: ▲11 | G34: ▲8 | H34: Middle East & Africa
A35: Amsterdam | B35: 34 | C35: 664 | D35: 36 | E35: 665 | F35: ▲2 | G35: ▼1 | H35: Western Europe
A36: Doha | B36: 35 | C36: 652 | D36: 22 | E36: 695 | F36: ▼13 | G36: ▼43 | H36: Middle East & Africa
A37: Kuala Lumpur | B37: 36 | C37: 649 | D37: 45 | E37: 656 | F37: ▲9 | G37: ▼7 | H37: Asia/Pacific
A38: Stockholm | B38: 37 | C38: 648 | D38: 32 | E38: 671 | F38: ▼5 | G38: ▼23 | H38: Western Europe
A39: Busan | B39: 38 | C39: 644 | D39: 24 | E39: 690 | F39: ▼14 | G39: ▼46 | H39: Asia/Pacific
A40: Dublin | B40: 39 | C40: 643 | D40: 46 | E40: 654 | F40: ▲7 | G40: ▼11 | H40: Western Europe
A41: Vienna | B41: 40 | C41: 642 | D41: 30 | E41: 674 | F41: ▼10 | G41: ▼32 | H41: Western Europe
A42: Cayman Islands | B42: 41 | C42: 641 | D42: 34 | E42: 668 | F42: ▼7 | G42: ▼27 | H42: Latin America & the Caribbean
A43: Mumbai | B43: 42 | C43: 640 | D43: 59 | E43: 627 | F43: ▲17 | G43: ▲13 | H43: Asia/Pacific
A44: Sao Paulo | B44: 43 | C44: 639 | D44: 31 | E44: 672 | F44: ▼12 | G44: ▼33 | H44: Latin America & the Caribbean
A45: Rio de Janeiro | B45: 44 | C45: 637 | D45: 35 | E45: 666 | F45: ▼9 | G45: ▼29 | H45: Latin America & the Caribbean
A46: Istanbul | B46: 45 | C46: 636 | D46: 47 | E46: 653 | F46: ▲2 | G46: ▼17 | H46: Eastern Europe & Central Asia
A47: British Virgin Islands | B47: 46 | C47: 635 | D47: 43 | E47: 658 | F47: ▼3 | G47: ▼23 | H47: Latin America & the Caribbean
A48: Bangkok | B48: 47 | C48: 633 | D48: 48 | E48: 651 | F48: ▲1 | G48: ▼18 | H48: Asia/Pacific
A49: Warsaw | B49: 48 | C49: 631 | D49: 38 | E49: 663 | F49: ▼10 | G49: ▼32 | H49: Eastern Europe & Central Asia
A50: Copenhagen | B50: 49 | C50: 630 | D50: 61 | E50: 625 | F50: ▲12 | G50: ▲5 | H50: Western Europe
A51: Bermuda | B51: 50 | C51: 629 | D51: 42 | E51: 659 | F51: ▼8 | G51: ▼30 | H51: Latin America & the Caribbean
A52: Johannesburg | B52: 51 | C52: 628 | D52: 33 | E52: 669 | F52: ▼18 | G52: ▼41 | H52: Middle East & Africa
A53: Brussels | B53: 52 | C53: 627 | D53: 62 | E53: 624 | F53: ▲10 | G53: ▲3 | H53: Western Europe
A54: Mexico City | B54: 53 | C54: 626 | D54: 69 | E54: 616 | F54: ▲16 | G54: ▲10 | H54: Latin America & the Caribbean
A55: Milan | B55: 54 | C55: 625 | D55: 65 | E55: 621 | F55: ▲11 | G55: ▲4 | H55: Western Europe
A56: Manila | B56: 55 | C56: 624 | D56: 55 | E56: 631 | F56: - | G56: ▼7 | H56: Asia/Pacific
A57: Edinburgh | B57: 56 | C57: 623 | D57: 71 | E57: 613 | F57: ▲15 | G57: ▲10 | H57: Western Europe
A58: Prague | B58: 57 | C58: 622 | D58: 63 | E58: 623 | F58: ▲6 | G58: ▼1 | H58: Eastern Europe & Central Asia
A59: Jakarta | B59: 58 | C59: 621 | D59: 73 | E59: 610 | F59: ▲15 | G59: ▲11 | H59: Asia/Pacific
A60: Glasgow | B60: 59 | C60: 620 | D60: 70 | E60: 615 | F60: ▲11 | G60: ▲5 | H60: Western Europe
A61: Helsinki | B61: 60 | C61: 619 | D61: 77 | E61: 604 | F61: ▲17 | G61: ▲15 | H61: Western Europe
A62: Gibraltar | B62: 61 | C62: 618 | D62: 56 | E62: 630 | F62: ▼5 | G62: ▼12 | H62: Western Europe
A63: Jersey | B63: 62 | C63: 617 | D63: 53 | E63: 633 | F63: ▼9 | G63: ▼16 | H63: Western Europe
A64: Rome | B64: 63 | C64: 616 | D64: 76 | E64: 605 | F64: ▲13 | G64: ▲11 | H64: Western Europe
A65: Madrid | B65: 64 | C65: 615 | D65: 79 | E65: 597 | F65: ▲15 | G65: ▲18 | H65: Western Europe
A66: Oslo | B66: 65 | C66: 614 | D66: 67 | E66: 618 | F66: ▲2 | G66: ▼4 | H66: Western Europe
A67: Guernsey | B67: 66 | C67: 613 | D67: 54 | E67: 632 | F67: ▼12 | G67: ▼19 | H67: Western Europe
A68: Moscow | B68: 67 | C68: 611 | D68: 78 | E68: 598 | F68: ▲11 | G68: ▲13 | H68: Eastern Europe & Central Asia
A69: Isle of Man | B69: 68 | C69: 610 | D69: 58 | E69: 628 | F69: ▼10 | G69: ▼18 | H69: Western Europe
A70: Bahrain | B70: 69 | C70: 609 | D70: 50 | E70: 647 | F70: ▼19 | G70: ▼38 | H70: Middle East & Africa
A71: Riyadh | B71: 70 | C71: 606 | D71: 57 | E71: 629 | F71: ▼13 | G71: ▼23 | H71: Middle East & Africa
A72: Riga | B72: 71 | C72: 605 | D72: - | E72: - | F72: - | G72: - | H72: Eastern Europe & Central Asia
A73: Panama | B73: 72 | C73: 603 | D73: 52 | E73: 638 | F73: ▼20 | G73: ▼35 | H73: Latin America & the Caribbean
A74: Mauritius | B74: 73 | C74: 601 | D74: 64 | E74: 622 | F74: ▼9 | G74: ▼21 | H74: Middle East & Africa
A75: Budapest | B75: 74 | C75: 600 | D75: 74 | E75: 609 | F75: - | G75: ▼9 | H75: Eastern Europe & Central Asia
A76: Lisbon | B76: 75 | C76: 599 | D76: 66 | E76: 619 | F76: ▼9 | G76: ▼20 | H76: Western Europe
A77: Liechtenstein | B77: 76 | C77: 598 | D77: 60 | E77: 626 | F77: ▼16 | G77: ▼28 | H77: Western Europe
A78: Almaty | B78: 77 | C78: 597 | D78: 51 | E78: 640 | F78: ▼26 | G78: ▼43 | H78: Eastern Europe & Central Asia
A79: Tallinn | B79: 78 | C79: 596 | D79: 82 | E79: 550 | F79: ▲4 | G79: ▲46 | H79: Eastern Europe & Central Asia
A80: Qingdao | B80: 79 | C80: 594 | D80: - | E80: - | F80: - | G80: - | H80: Asia/Pacific
A81: Monaco | B81: 80 | C81: 590 | D81: 72 | E81: 612 | F81: ▼8 | G81: ▼22 | H81: Western Europe
A82: Malta | B82: 81 | C82: 587 | D82: 68 | E82: 617 | F82: ▼13 | G82: ▼30 | H82: Western Europe
A83: St Petersburg | B83: 82 | C83: 585 | D83: 81 | E83: 552 | F83: ▼1 | G83: ▲33 | H83: Eastern Europe & Central Asia
A84: Cyprus | B84: 83 | C84: 576 | D84: 80 | E84: 587 | F84: ▼3 | G84: ▼11 | H84: Eastern Europe & Central Asia
A85: Bahamas | B85: 84 | C85: 568 | D85: 75 | E85: 606 | F85: ▼9 | G85: ▼38 | H85: Latin America & the Caribbean
A86: Reykjavik | B86: 85 | C86: 562 | D86: 84 | E86: 537 | F86: ▼1 | G86: ▲25 | H86: Western Europe
A87: Athens | B87: 86 | C87: 558 | D87: 83 | E87: 540 | F87: ▼3 | G87: ▲18 | H87: Eastern Europe & Central Asia

Sheet Ratings Over Time
A1: Centre | B1: GFCI 1 | C1: GFCI 2 | D1: GFCI 3 | E1: GFCI 4 | F1: GFCI 5 | G1: GFCI 6 | H1: GFCI 7 | I1: GFCI 8 | J1: GFCI 9 | K1: GFCI 10 | L1: GFCI 11 | M1: GFCI 12 | N1: GFCI 13 | O1: GFCI 14 | P1: GFCI 15 | Q1: GFCI 16 | R1: GFCI 17 | S1: GFCI 18 | T1: GFCI 19
A2: London | B2: 765 | C2: 806 | D2: 795 | E2: 791 | F2: 781 | G2: 790 | H2: 775 | I2: 772 | J2: 775 | K2: 774 | L2: 781 | M2: 785 | N2: 807 | O2: 794 | P2: 784 | Q2: 777 | R2: 784 | S2: 796 | T2: 800
A3: New York | B3: 760 | C3: 787 | D3: 786 | E3: 774 | F3: 768 | G3: 774 | H3: 775 | I3: 770 | J3: 769 | K3: 773 | L3: 772 | M3: 765 | N3: 787 | O3: 779 | P3: 786 | Q3: 778 | R3: 785 | S3: 788 | T3: 792
A4: Singapore | B4: 661 | C4: 673 | D4: 675 | E4: 701 | F4: 687 | G4: 719 | H4: 733 | I4: 728 | J4: 722 | K4: 735 | L4: 729 | M4: 725 | N4: 759 | O4: 751 | P4: 751 | Q4: 746 | R4: 754 | S4: 750 | T4: 755
A5: Hong Kong | B5: 685 | C5: 697 | D5: 695 | E5: 700 | F5: 684 | G5: 729 | H5: 739 | I5: 760 | J5: 759 | K5: 770 | L5: 754 | M5: 733 | N5: 761 | O5: 759 | P5: 761 | Q5: 756 | R5: 758 | S5: 755 | T5: 753
A6: Tokyo | B6: 633 | C6: 625 | D6: 628 | E6: 642 | F6: 611 | G6: 674 | H6: 692 | I6: 697 | J6: 694 | K6: 695 | L6: 693 | M6: 684 | N6: 718 | O6: 720 | P6: 722 | Q6: 718 | R6: 722 | S6: 725 | T6: 728
A7: Zurich | B7: 656 | C7: 666 | D7: 665 | E7: 676 | F7: 659 | G7: 676 | H7: 677 | I7: 669 | J7: 665 | K7: 686 | L7: 689 | M7: 691 | N7: 723 | O7: 718 | P7: 730 | Q7: 717 | R7: 719 | S7: 715 | T7: 714
A8: Washington DC | B8: 594 | C8: 589 | D8: 597 | E8: 600 | F8: 596 | G8: 630 | H8: 647 | I8: 649 | J8: 650 | K8: 670 | L8: 677 | M8: 672 | N8: 692 | O8: 689 | P8: 706 | Q8: 704 | R8: 703 | S8: 711 | T8: 712
A9: San Francisco | B9: 611 | C9: 608 | D9: 614 | E9: 620 | F9: 609 | G9: 634 | H9: 651 | I9: 654 | J9: 655 | K9: 681 | L9: 683 | M9: 678 | N9: 695 | O9: 697 | P9: 711 | Q9: 719 | R9: 708 | S9: 712 | T9: 711
A10: Boston | B10: 609 | C10: 621 | D10: 618 | E10: 625 | F10: 618 | G10: 634 | H10: 652 | I10: 655 | J10: 656 | K10: 678 | L10: 684 | M10: 680 | N10: 711 | O10: 714 | P10: 715 | Q10: 705 | R10: 706 | S10: 709 | T10: 709
A11: Toronto | B11: 614 | C11: 613 | D11: 610 | E11: 624 | F11: 615 | G11: 647 | H11: 667 | I11: 656 | J11: 658 | K11: 680 | L11: 685 | M11: 681 | N11: 696 | O11: 699 | P11: 705 | Q11: 703 | R11: 704 | S11: 714 | T11: 707
A12: Chicago | B12: 636 | C12: 639 | D12: 638 | E12: 641 | F12: 638 | G12: 661 | H12: 678 | I12: 678 | J12: 673 | K12: 692 | L12: 688 | M12: 683 | N12: 698 | O12: 695 | P12: 704 | Q12: 702 | R12: 707 | S12: 710 | T12: 706
A13: Seoul | B13: 432 | C13: 464 | D13: 455 | E13: 502 | F13: 462 | G13: 576 | H13: 615 | I13: 621 | J13: 651 | K13: 679 | L13: 686 | M13: 685 | N13: 710 | O13: 701 | P13: 718 | Q13: 715 | R13: 718 | S13: 724 | T13: 705
A14: Dubai | B14: 570 | C14: 575 | D14: 585 | E14: 597 | F14: 580 | G14: 617 | H14: 618 | I14: 607 | J14: 605 | K14: 622 | L14: 641 | M14: 648 | N14: 675 | O14: 671 | P14: 684 | Q14: 694 | R14: 688 | S14: 704 | T14: 699
A15: Luxembourg | B15: 570 | C15: 596 | D15: 605 | E15: 622 | F15: 612 | G15: 637 | H15: 643 | I15: 634 | J15: 630 | K15: 637 | L15: 648 | M15: 646 | N15: 687 | O15: 696 | P15: 707 | Q15: 697 | R15: 694 | S15: 700 | T15: 698
A16: Geneva | B16: 627 | C16: 645 | D16: 640 | E16: 645 | F16: 638 | G16: 660 | H16: 671 | I16: 661 | J16: 659 | K16: 672 | L16: 679 | M16: 682 | N16: 712 | O16: 710 | P16: 713 | Q16: 701 | R16: 702 | S16: 707 | T16: 694
A17: Shanghai | B17: 578 | C17: 527 | D17: 554 | E17: 568 | F17: 538 | G17: 655 | H17: 668 | I17: 693 | J17: 694 | K17: 724 | L17: 687 | M17: 656 | N17: 674 | O17: 690 | P17: 695 | Q17: 690 | R17: 695 | S17: 698 | T17: 693
A18: Sydney | B18: 638 | C18: 636 | D18: 621 | E18: 630 | F18: 610 | G18: 651 | H18: 670 | I18: 660 | J18: 658 | K18: 669 | L18: 674 | M18: 670 | N18: 686 | O18: 692 | P18: 690 | Q18: 682 | R18: 690 | S18: 705 | T18: 692
A19: Frankfurt | B19: 647 | C19: 649 | D19: 642 | E19: 636 | F19: 633 | G19: 649 | H19: 660 | I19: 659 | J19: 654 | K19: 667 | L19: 681 | M19: 677 | N19: 703 | O19: 702 | P19: 709 | Q19: 695 | R19: 692 | S19: 706 | T19: 689
A20: Shenzhen | G20: 695 | H20: 665 | I20: 654 | J20: 653 | K20: 642 | L20: 638 | M20: 637 | N20: 650 | O20: 660 | P20: 697 | Q20: 680 | R20: 689 | S20: 694 | T20: 688
A21: Osaka | C21: 502 | D21: 469 | E21: 493 | F21: 469 | G21: 565 | H21: 606 | I21: 601 | J21: 594 | K21: 641 | L21: 647 | M21: 650 | N21: 676 | O21: 655 | P21: 676 | Q21: 667 | R21: 668 | S21: 699 | T21: 687
A22: Montreal | B22: 583 | C22: 538 | D22: 560 | E22: 579 | F22: 568 | G22: 586 | H22: 617 | I22: 617 | J22: 615 | K22: 652 | L22: 658 | M22: 667 | N22: 689 | O22: 688 | P22: 699 | Q22: 693 | R22: 693 | S22: 703 | T22: 686
A23: Vancouver | B23: 559 | C23: 525 | D23: 548 | E23: 580 | F23: 569 | G23: 589 | H23: 623 | I23: 627 | J23: 626 | K23: 661 | L23: 667 | M23: 668 | N23: 690 | O23: 686 | P23: 698 | Q23: 700 | R23: 696 | S23: 702 | T23: 684
A24: Beijing | B24: 514 | C24: 482 | D24: 493 | E24: 509 | F24: 478 | G24: 613 | H24: 651 | I24: 653 | J24: 650 | K24: 655 | L24: 644 | M24: 626 | N24: 622 | O24: 598 | P24: 649 | Q24: 668 | R24: 674 | S24: 676 | T24: 682
A25: Taipei | D25: 540 | E25: 541 | F25: 518 | G25: 609 | H25: 638 | I25: 639 | J25: 639 | K25: 645 | L25: 643 | M25: 628 | N25: 653 | O25: 619 | P25: 636 | Q25: 677 | R25: 686 | S25: 686 | T25: 677
A26: Tel Aviv | O26: 653 | P26: 692 | Q26: 664 | R26: 684 | S26: 687 | T26: 676
A27: Abu Dhabi | L27: 618 | M27: 631 | N27: 649 | O27: 637 | P27: 678 | Q27: 692 | R27: 685 | S27: 679 | T27: 675
A28: Munich | C28: 535 | D28: 546 | E28: 578 | F28: 558 | G28: 588 | H28: 610 | I28: 610 | J28: 617 | K28: 649 | L28: 656 | M28: 645 | N28: 669 | O28: 651 | P28: 685 | Q28: 663 | R28: 670 | S28: 661 | T28: 672
A29: Calgary | L29: 642 | M29: 647 | N29: 688 | O29: 684 | P29: 691 | Q29: 678 | R29: 661 | S29: 662 | T29: 671
A30: Los Angeles | S30: 650 | T30: 670
A31: Melbourne | B31: 602 | C31: 588 | D31: 573 | E31: 586 | F31: 562 | G31: 584 | H31: 617 | I31: 622 | J31: 621 | K31: 656 | L31: 653 | M31: 657 | N31: 672 | O31: 652 | P31: 670 | Q31: 681 | R31: 677 | S31: 685 | T31: 669
A32: Dalian | R32: 632 | S32: 660 | T32: 668
A33: Paris | B33: 625 | C33: 622 | D33: 612 | E33: 607 | F33: 600 | G33: 630 | H33: 642 | I33: 645 | J33: 637 | K33: 643 | L33: 650 | M33: 640 | N33: 670 | O33: 656 | P33: 672 | Q33: 669 | R33: 653 | S33: 664 | T33: 667
A34: Casablanca | P34: 622 | Q34: 635 | R34: 645 | S34: 657 | T34: 665
A35: Amsterdam | B35: 577 | C35: 599 | D35: 585 | E35: 590 | F35: 575 | G35: 586 | H35: 604 | I35: 595 | J35: 593 | K35: 625 | L35: 637 | M35: 638 | N35: 655 | O35: 629 | P35: 652 | Q35: 658 | R35: 649 | S35: 665 | T35: 664
A36: Doha | C36: 440 | D36: 491 | E36: 525 | F36: 507 | G36: 558 | H36: 600 | I36: 592 | J36: 597 | K36: 636 | L36: 630 | M36: 634 | N36: 661 | O36: 672 | P36: 687 | Q36: 684 | R36: 691 | S36: 695 | T36: 652
A37: Kuala Lumpur | F37: 510 | G37: 557 | H37: 571 | I37: 569 | J37: 573 | K37: 619 | L37: 635 | M37: 644 | N37: 681 | O37: 675 | P37: 675 | Q37: 656 | R37: 652 | S37: 656 | T37: 649
A38: Stockholm | B38: 559 | C38: 554 | D38: 553 | E38: 569 | F38: 556 | G38: 569 | H38: 595 | I38: 587 | J38: 592 | K38: 638 | L38: 645 | M38: 642 | N38: 657 | O38: 644 | P38: 683 | Q38: 665 | R38: 655 | S38: 671 | T38: 648
A39: Busan | P39: 686 | Q39: 676 | R39: 687 | S39: 690 | T39: 644
A40: Dublin | B40: 578 | C40: 605 | D40: 613 | E40: 622 | F40: 618 | G40: 613 | H40: 612 | I40: 605 | J40: 592 | K40: 614 | L40: 621 | M40: 618 | N40: 627 | O40: 605 | P40: 616 | Q40: 607 | R40: 627 | S40: 654 | T40: 643
A41: Vienna | B41: 519 | C41: 515 | D41: 507 | E41: 530 | F41: 513 | G41: 555 | H41: 583 | I41: 571 | J41: 576 | K41: 615 | L41: 636 | M41: 633 | N41: 685 | O41: 685 | P41: 696 | Q41: 673 | R41: 656 | S41: 674 | T41: 642
A42: Cayman Islands | B42: 604 | C42: 564 | D42: 575 | E42: 602 | F42: 591 | G42: 608 | H42: 615 | I42: 592 | J42: 587 | K42: 610 | L42: 628 | M42: 625 | N42: 647 | O42: 642 | P42: 655 | Q42: 632 | R42: 650 | S42: 668 | T42: 641
A43: Mumbai | B43: 460 | C43: 470 | D43: 481 | E43: 497 | F43: 485 | G43: 542 | H43: 562 | I43: 550 | J43: 541 | K43: 578 | L43: 584 | M43: 586 | N43: 605 | O43: 570 | P43: 584 | Q43: 625 | R43: 626 | S43: 627 | T43: 640
A44: Sao Paulo | C44: 434 | D44: 451 | E44: 471 | F44: 440 | G44: 560 | H44: 590 | I44: 573 | J44: 574 | K44: 607 | L44: 612 | M44: 619 | N44: 644 | O44: 643 | P44: 667 | Q44: 666 | R44: 644 | S44: 672 | T44: 639
A45: Rio de Janeiro | G45: 532 | H45: 566 | I45: 561 | J45: 563 | K45: 602 | L45: 608 | M45: 608 | N45: 639 | O45: 654 | P45: 653 | Q45: 650 | R45: 638 | S45: 666 | T45: 637
A46: Istanbul | G46: 442 | H46: 470 | I46: 496 | J46: 494 | K46: 580 | L46: 590 | M46: 601 | N46: 626 | O46: 633 | P46: 651 | Q46: 655 | R46: 643 | S46: 653 | T46: 636
A47: British Virgin Islands | D47: 574 | E47: 584 | F47: 549 | G47: 584 | H47: 596 | I47: 582 | J47: 584 | K47: 611 | L47: 623 | M47: 624 | N47: 640 | O47: 626 | P47: 654 | Q47: 639 | R47: 657 | S47: 658 | T47: 635
A48: Bangkok | F48: 480 | G48: 532 | H48: 549 | I48: 537 | J48: 536 | K48: 585 | L48: 594 | M48: 600 | N48: 619 | O48: 600 | P48: 640 | Q48: 646 | R48: 633 | S48: 651 | T48: 633
A49: Warsaw | B49: 459 | C49: 438 | D49: 433 | E49: 424 | F49: 381 | G49: 456 | H49: 520 | I49: 517 | J49: 538 | K49: 593 | L49: 606 | M49: 598 | N49: 608 | O49: 571 | P49: 626 | Q49: 612 | R49: 606 | S49: 663 | T49: 631
A50: Copenhagen | B50: 525 | C50: 488 | D50: 502 | E50: 548 | F50: 532 | G50: 560 | H50: 587 | I50: 573 | J50: 571 | K50: 626 | L50: 634 | M50: 635 | N50: 643 | O50: 625 | P50: 623 | Q50: 626 | R50: 612 | S50: 625 | T50: 630
A51: Hamilton (Bermuda) | B51: 603 | C51: 562 | D51: 573 | E51: 586 | F51: 564 | G51: 597 | H51: 612 | I51: 592 | J51: 589 | K51: 616 | L51: 625 | M51: 621 | N51: 638 | O51: 641 | P51: 631 | Q51: 628 | R51: 648 | S51: 659 | T51: 629
A52: Johannesburg | C52: 463 | D52: 511 | E52: 525 | F52: 503 | G52: 550 | H52: 566 | I52: 555 | J52: 551 | K52: 603 | L52: 603 | M52: 603 | N52: 610 | O52: 592 | P52: 647 | Q52: 659 | R52: 662 | S52: 669 | T52: 628
A53: Brussels | B53: 542 | C53: 546 | D53: 548 | E53: 559 | F53: 552 | G53: 568 | H53: 591 | I53: 582 | J53: 581 | K53: 612 | L53: 620 | M53: 620 | N53: 641 | O53: 597 | P53: 630 | Q53: 630 | R53: 607 | S53: 624 | T53: 627
A54: Mexico City | G54: 541 | H54: 563 | I54: 563 | J54: 561 | K54: 609 | L54: 610 | M54: 602 | N54: 628 | O54: 584 | P54: 605 | Q54: 652 | R54: 623 | S54: 616 | T54: 626
A55: Milan | B55: 546 | C55: 519 | D55: 520 | E55: 541 | F55: 521 | G55: 554 | H55: 579 | I55: 577 | J55: 581 | K55: 606 | L55: 609 | M55: 612 | N55: 652 | O55: 618 | P55: 650 | Q55: 638 | R55: 596 | S55: 621 | T55: 625
A56: Manila | G56: 494 | H56: 527 | I56: 523 | J56: 519 | K56: 570 | L56: 573 | M56: 570 | N56: 588 | O56: 587 | P56: 610 | Q56: 627 | R56: 611 | S56: 631 | T56: 624
A57: Edinburgh | B57: 604 | C57: 587 | D57: 604 | E57: 614 | F57: 600 | G57: 605 | H57: 615 | I57: 600 | J57: 600 | K57: 632 | L57: 632 | M57: 632 | N57: 632 | O57: 590 | P57: 620 | Q57: 621 | R57: 599 | S57: 613 | T57: 623
A58: Prague | B58: 452 | C58: 454 | D58: 437 | E58: 444 | F58: 396 | G58: 492 | H58: 543 | I58: 543 | J58: 547 | K58: 605 | L58: 602 | M58: 604 | N58: 611 | O58: 565 | P58: 589 | Q58: 623 | R58: 613 | S58: 623 | T58: 622
A59: Jakarta | G59: 511 | H59: 535 | I59: 534 | J59: 532 | K59: 577 | L59: 588 | M59: 573 | N59: 592 | O59: 606 | P59: 606 | Q59: 620 | R59: 618 | S59: 610 | T59: 621
A60: Glasgow | D60: 592 | E60: 586 | F60: 554 | G60: 550 | H60: 570 | I60: 572 | J60: 571 | K60: 628 | L60: 627 | M60: 630 | N60: 636 | O60: 586 | P60: 590 | Q60: 636 | R60: 600 | S60: 615 | T60: 620
A61: Helsinki | B61: 538 | C61: 518 | D61: 512 | E61: 534 | F61: 512 | G61: 533 | H61: 573 | I61: 549 | J61: 546 | K61: 618 | L61: 626 | M61: 627 | N61: 634 | O61: 604 | P61: 592 | Q61: 582 | R61: 581 | S61: 604 | T61: 619
A62: Gibraltar | D62: 574 | E62: 589 | F62: 549 | G62: 543 | H62: 568 | I62: 554 | J62: 546 | K62: 584 | L62: 587 | M62: 599 | N62: 615 | O62: 572 | P62: 639 | Q62: 633 | R62: 642 | S62: 630 | T62: 618
A63: Jersey | D63: 607 | E63: 622 | F63: 613 | G63: 640 | H63: 643 | I63: 626 | J63: 624 | K63: 650 | L63: 652 | M63: 654 | N63: 668 | O63: 657 | P63: 657 | Q63: 624 | R63: 625 | S63: 633 | T63: 617
A64: Rome | B64: 473 | C64: 479 | D64: 471 | E64: 467 | F64: 439 | G64: 537 | H64: 574 | I64: 563 | J64: 568 | K64: 597 | L64: 596 | M64: 590 | N64: 648 | O64: 650 | P64: 637 | Q64: 631 | R64: 586 | S64: 605 | T64: 616
A65: Madrid | B65: 559 | C65: 516 | D65: 509 | E65: 525 | F65: 506 | G65: 560 | H65: 581 | I65: 584 | J65: 588 | K65: 608 | L65: 617 | M65: 614 | N65: 635 | O65: 607 | P65: 604 | Q65: 585 | R65: 582 | S65: 597 | T65: 615
A66: Oslo | B66: 527 | C66: 500 | D66: 495 | E66: 534 | F66: 523 | G66: 538 | H66: 581 | I66: 557 | J66: 560 | K66: 621 | L66: 629 | M66: 636 | N66: 667 | O66: 669 | P66: 677 | Q66: 629 | R66: 601 | S66: 618 | T66: 614
A67: Guernsey | D67: 603 | E67: 622 | F67: 615 | G67: 638 | H67: 632 | I67: 616 | J67: 607 | K67: 635 | L67: 639 | M67: 641 | N67: 660 | O67: 649 | P67: 656 | Q67: 619 | R67: 624 | S67: 632 | T67: 613
A68: Moscow | B68: 419 | C68: 415 | D68: 423 | E68: 414 | F68: 363 | G68: 462 | H68: 516 | I68: 506 | J68: 506 | K68: 581 | L68: 583 | M68: 585 | N68: 606 | O68: 580 | P68: 591 | Q68: 536 | R68: 579 | S68: 598 | T68: 611
A69: Isle of Man | C69: 583 | D69: 597 | E69: 611 | F69: 601 | G69: 609 | H69: 618 | I69: 598 | J69: 590 | K69: 617 | L69: 624 | M69: 629 | N69: 645 | O69: 638 | P69: 642 | Q69: 622 | R69: 617 | S69: 628 | T69: 610
A70: Manama | C70: 455 | D70: 514 | E70: 529 | F70: 513 | G70: 558 | H70: 587 | I70: 578 | J70: 566 | K70: 596 | L70: 600 | M70: 596 | N70: 607 | O70: 610 | P70: 660 | Q70: 634 | R70: 641 | S70: 647 | T70: 609
A71: Riyadh | G71: 457 | H71: 507 | I71: 503 | J71: 500 | K71: 575 | L71: 572 | M71: 584 | N71: 656 | O71: 627 | P71: 682 | Q71: 685 | R71: 698 | S71: 629 | T71: 606
A72: Riga | T72: 605
A73: Panama | N73: 597 | O73: 589 | P73: 628 | Q73: 637 | R73: 637 | S73: 638 | T73: 603
A74: Port Louis | G74: 536 | H74: 552 | I74: 535 | J74: 533 | K74: 571 | L74: 578 | M74: 579 | N74: 590 | O74: 581 | P74: 621 | Q74: 608 | R74: 598 | S74: 622 | T74: 601
A75: Budapest | B75: 421 | C75: 396 | D75: 404 | E75: 374 | F75: 306 | G75: 425 | H75: 481 | I75: 467 | J75: 468 | K75: 543 | L75: 552 | M75: 544 | N75: 541 | O75: 515 | P75: 560 | Q75: 566 | R75: 575 | S75: 609 | T75: 600
A76: Lisbon | B76: 452 | C76: 422 | D76: 420 | E76: 430 | F76: 409 | G76: 477 | H76: 529 | I76: 534 | J76: 525 | K76: 582 | L76: 575 | M76: 554 | N76: 552 | O76: 535 | P76: 536 | Q76: 555 | R76: 570 | S76: 619 | T76: 599
A77: Liechtenstein | S77: 626 | T77: 598
A78: Almaty | P78: 629 | Q78: 653 | R78: 634 | S78: 640 | T78: 597
A79: Tallinn | G79: 445 | H79: 488 | I79: 451 | J79: 456 | K79: 574 | L79: 570 | M79: 583 | N79: 589 | O79: 495 | P79: 510 | Q79: 498 | R79: 531 | S79: 550 | T79: 596
A80: Qingdao | T80: 594
A81: Monaco | D81: 522 | E81: 552 | F81: 533 | G81: 563 | H81: 578 | I81: 567 | J81: 562 | K81: 583 | L81: 593 | M81: 597 | N81: 654 | O81: 674 | P81: 689 | Q81: 674 | R81: 616 | S81: 612 | T81: 590
A82: Valletta | G82: 543 | H82: 565 | I82: 554 | J82: 538 | K82: 568 | L82: 568 | M82: 575 | N82: 595 | O82: 608 | P82: 614 | Q82: 581 | R82: 594 | S82: 617 | T82: 587
A83: St Petersburg | G83: 453 | H83: 501 | I83: 491 | J83: 504 | K83: 554 | L83: 567 | M83: 574 | N83: 585 | O83: 522 | P83: 543 | Q83: 600 | R83: 569 | S83: 552 | T83: 585
A84: Nicosia | N84: 576 | O84: 536 | P84: 541 | Q84: 540 | R84: 551 | S84: 587 | T84: 576
A85: Bahamas | D85: 544 | E85: 563 | F85: 537 | G85: 551 | H85: 557 | I85: 529 | J85: 517 | K85: 545 | L85: 550 | M85: 572 | N85: 587 | O85: 583 | P85: 618 | Q85: 603 | R85: 597 | S85: 606 | T85: 568
A86: Reykjavik | G86: 415 | H86: 447 | I86: 441 | J86: 436 | K86: 491 | L86: 517 | M86: 539 | N86: 546 | O86: 479 | P86: 505 | Q86: 465 | R86: 484 | S86: 537 | T86: 562
A87: Athens | B87: 395 | C87: 393 | D87: 396 | E87: 379 | F87: 335 | G87: 433 | H87: 480 | I87: 465 | J87: 457 | K87: 477 | L87: 468 | M87: 463 | N87: 473 | O87: 469 | P87: 423 | Q87: 481 | R87: 499 | S87: 540 | T87: 558
A88: Buenos Aires | G88: 507 | H88: 535 | I88: 528 | J88: 525 | K88: 579 | L88: 577 | M88: 578 | N88: 633 | O88: 628 | P88: 688 | Q88: 657
A89: Wellington | B89: 513 | C89: 447 | D89: 452 | E89: 473 | F89: 432 | G89: 541 | H89: 582 | I89: 585 | J89: 587 | K89: 640 | L89: 640 | M89: 639 | N89: 646 | O89: 636 | P89: 666 | Q89: 594

Sheet Ranks Over Time
A1: Centre | B1: GFCI 1 | C1: GFCI 2 | D1: GFCI 3 | E1: GFCI 4 | F1: GFCI 5 | G1: GFCI 6 | H1: GFCI 7 | I1: GFCI 8 | J1: GFCI 9 | K1: GFCI 10 | L1: GFCI 11 | M1: GFCI 12 | N1: GFCI 13 | O1: GFCI 14 | P1: GFCI 15 | Q1: GFCI 16 | R1: GFCI 17 | S1: GFCI 18 | T1: GFCI 19
A2: London | B2: 1 | C2: 1 | D2: 1 | E2: 1 | F2: 1 | G2: 1 | H2: 1 | I2: 1 | J2: 1 | K2: 1 | L2: 1 | M2: 1 | N2: 1 | O2: 1 | P2: 2 | Q2: 2 | R2: 2 | S2: 1 | T2: 1
A3: New York | B3: 2 | C3: 2 | D3: 2 | E3: 2 | F3: 2 | G3: 2 | H3: 1 | I3: 2 | J3: 2 | K3: 2 | L3: 2 | M3: 2 | N3: 2 | O3: 2 | P3: 1 | Q3: 1 | R3: 1 | S3: 2 | T3: 2
A4: Singapore | B4: 4 | C4: 4 | D4: 4 | E4: 3 | F4: 3 | G4: 4 | H4: 4 | I4: 4 | J4: 4 | K4: 4 | L4: 4 | M4: 4 | N4: 4 | O4: 4 | P4: 4 | Q4: 4 | R4: 4 | S4: 4 | T4: 3
A5: Hong Kong | B5: 3 | C5: 3 | D5: 3 | E5: 4 | F5: 4 | G5: 3 | H5: 3 | I5: 3 | J5: 3 | K5: 3 | L5: 3 | M5: 3 | N5: 3 | O5: 3 | P5: 3 | Q5: 3 | R5: 3 | S5: 3 | T5: 4
A6: Tokyo | B6: 9 | C6: 10 | D6: 9 | E6: 7 | F6: 15 | G6: 7 | H6: 5 | I6: 5 | J6: 5 | K6: 6 | L6: 5 | M6: 7 | N6: 6 | O6: 5 | P6: 6 | Q6: 6 | R6: 5 | S6: 5 | T6: 5
A7: Zurich | B7: 5 | C7: 5 | D7: 5 | E7: 5 | F7: 5 | G7: 6 | H7: 7 | I7: 8 | J7: 8 | K7: 8 | L7: 6 | M7: 5 | N7: 5 | O7: 6 | P7: 5 | Q7: 7 | R7: 6 | S7: 7 | T7: 6
A8: Washington DC | B8: 19 | C8: 18 | D8: 20 | E8: 22 | F8: 21 | G8: 19 | H8: 17 | I8: 17 | J8: 17 | K8: 14 | L8: 15 | M8: 14 | N8: 14 | O8: 17 | P8: 13 | Q8: 10 | R8: 12 | S8: 10 | T8: 7
A9: San Francisco | B9: 13 | C9: 14 | D9: 12 | E9: 17 | F9: 17 | G9: 17 | H9: 15 | I9: 14 | J9: 13 | K9: 9 | L9: 12 | M9: 12 | N9: 13 | O9: 12 | P9: 10 | Q9: 5 | R9: 8 | S9: 9 | T9: 8
A10: Boston | B10: 14 | C10: 12 | D10: 11 | E10: 11 | F10: 9 | G10: 17 | H10: 14 | I10: 13 | J10: 12 | K10: 12 | L10: 11 | M10: 11 | N10: 8 | O10: 7 | P10: 8 | Q10: 9 | R10: 10 | S10: 12 | T10: 9
A11: Toronto | B11: 12 | C11: 13 | D11: 15 | E11: 12 | F11: 11 | G11: 13 | H11: 11 | I11: 12 | J11: 10 | K11: 10 | L11: 10 | M11: 10 | N11: 12 | O11: 11 | P11: 14 | Q11: 11 | R11: 11 | S11: 8 | T11: 10
A12: Chicago | B12: 8 | C12: 8 | D12: 8 | E12: 8 | F12: 6 | G12: 8 | H12: 6 | I12: 7 | J12: 7 | K12: 7 | L12: 7 | M12: 8 | N12: 11 | O12: 14 | P12: 15 | Q12: 12 | R12: 9 | S12: 11 | T12: 11
A13: Seoul | B13: 41 | C13: 41 | D13: 52 | E13: 49 | F13: 53 | G13: 35 | H13: 28 | I13: 24 | J13: 16 | K13: 11 | L13: 9 | M13: 6 | N13: 9 | O13: 10 | P13: 7 | Q13: 8 | R13: 7 | S13: 6 | T13: 12
A14: Dubai | B14: 24 | C14: 22 | D14: 23 | E14: 23 | F14: 23 | G14: 21 | H14: 24 | I14: 28 | J14: 28 | K14: 35 | L14: 29 | M14: 22 | N14: 23 | O14: 25 | P14: 29 | Q14: 17 | R14: 23 | S14: 16 | T14: 13
A15: Luxembourg | B15: 24 | C15: 17 | D15: 17 | E15: 13 | F15: 14 | G15: 16 | H15: 18 | I15: 20 | J15: 21 | K15: 28 | L15: 23 | M15: 24 | N15: 18 | O15: 13 | P15: 12 | Q15: 15 | R15: 17 | S15: 19 | T15: 14
A16: Geneva | B16: 10 | C16: 7 | D16: 7 | E16: 6 | F16: 6 | G16: 9 | H16: 8 | I16: 9 | J16: 9 | K16: 13 | L16: 14 | M16: 9 | N16: 7 | O16: 8 | P16: 9 | Q16: 13 | R16: 13 | S16: 13 | T16: 15
A17: Shanghai | B17: 21 | C17: 29 | D17: 31 | E17: 34 | F17: 35 | G17: 10 | H17: 10 | I17: 6 | J17: 5 | K17: 5 | L17: 8 | M17: 19 | N17: 24 | O17: 16 | P17: 20 | Q17: 20 | R17: 16 | S17: 21 | T17: 16
A18: Sydney | B18: 7 | C18: 9 | D18: 10 | E18: 10 | F18: 16 | G18: 11 | H18: 9 | I18: 10 | J18: 10 | K18: 15 | L18: 16 | M18: 15 | N18: 19 | O18: 15 | P18: 23 | Q18: 23 | R18: 21 | S18: 15 | T18: 17
A19: Frankfurt | B19: 6 | C19: 6 | D19: 6 | E19: 9 | F19: 8 | G19: 12 | H19: 13 | I19: 11 | J19: 14 | K19: 16 | L19: 13 | M19: 13 | N19: 10 | O19: 9 | P19: 11 | Q19: 16 | R19: 19 | S19: 14 | T19: 18
A20: Shenzhen | B20: - | C20: - | D20: - | E20: - | F20: - | G20: 5 | H20: 12 | I20: 14 | J20: 15 | K20: 25 | L20: 31 | M20: 31 | N20: 38 | O20: 27 | P20: 18 | Q20: 25 | R20: 22 | S20: 23 | T20: 19
A21: Osaka | B21: - | C21: 35 | D21: 51 | E21: 51 | F21: 52 | G21: 38 | H21: 34 | I21: 30 | J21: 31 | K21: 26 | L21: 24 | M21: 21 | N21: 22 | O21: 30 | P21: 34 | Q21: 33 | R21: 31 | S21: 20 | T21: 20
A22: Montreal | B22: 20 | C22: 27 | D22: 30 | E22: 31 | F22: 26 | G22: 31 | H22: 26 | I22: 25 | J22: 26 | K22: 20 | L22: 18 | M22: 17 | N22: 16 | O22: 18 | P22: 16 | Q22: 18 | R22: 18 | S22: 17 | T22: 21
A23: Vancouver | B23: 26 | C23: 30 | D23: 33 | E23: 30 | F23: 25 | G23: 29 | H23: 23 | I23: 21 | J23: 22 | K23: 17 | L23: 17 | M23: 16 | N23: 15 | O23: 19 | P23: 17 | Q23: 14 | R23: 15 | S23: 18 | T23: 22
A24: Beijing | B24: 35 | C24: 38 | D24: 47 | E24: 48 | F24: 51 | G24: 22 | H24: 15 | I24: 16 | J24: 17 | K24: 19 | L24: 26 | M24: 42 | N24: 57 | O24: 58 | P24: 48 | Q24: 32 | R24: 29 | S24: 29 | T24: 23
A25: Taipei | B25: - | C25: - | D25: 37 | E25: 39 | F25: 41 | G25: 24 | H25: 21 | I25: 19 | J25: 19 | K25: 23 | L25: 27 | M25: 40 | N25: 36 | O25: 49 | P25: 54 | Q25: 27 | R25: 25 | S25: 26 | T25: 24
A26: Tel Aviv | B26: - | C26: - | D26: - | E26: - | F26: - | G26: - | H26: - | I26: - | J26: - | K26: - | L26: - | M26: - | N26: - | O26: 32 | P26: 21 | Q26: 36 | R26: 27 | S26: 25 | T26: 25
A27: Abu Dhabi | B27: - | C27: - | D27: - | E27: - | F27: - | G27: - | H27: - | I27: - | J27: - | K27: - | L27: 47 | M27: 37 | N27: 39 | O27: 42 | P27: 32 | Q27: 19 | R27: 26 | S27: 28 | T27: 26
A28: Munich | B28: - | C28: 28 | D28: 35 | E28: 32 | F28: 29 | G28: 30 | H28: 33 | I28: 27 | J28: 25 | K28: 22 | L28: 19 | M28: 25 | N28: 27 | O28: 34 | P28: 28 | Q28: 37 | R28: 30 | S28: 40 | T28: 27
A29: Calgary | B29: - | C29: - | D29: - | E29: - | F29: - | G29: - | H29: - | I29: - | J29: - | K29: - | L29: 28 | M29: 23 | N29: 17 | O29: 21 | P29: 22 | Q29: 26 | R29: 33 | S29: 39 | T29: 28
A30: Los Angeles | B30: - | C30: - | D30: - | E30: - | F30: - | G30: - | H30: - | I30: - | J30: - | K30: - | L30: - | M30: - | N30: - | O30: - | P30: - | Q30: - | R30: - | S30: 49 | T30: 29
A31: Melbourne | B31: 18 | C31: 19 | D31: 28 | E31: 26 | F31: 28 | G31: 33 | H31: 26 | I31: 23 | J31: 24 | K31: 18 | L31: 20 | M31: 18 | N31: 25 | O31: 33 | P31: 37 | Q31: 24 | R31: 28 | S31: 27 | T31: 30
A32: Dalian | B32: - | C32: - | D32: - | E32: - | F32: - | G32: - | H32: - | I32: - | J32: - | K32: - | L32: - | M32: - | N32: - | O32: - | P32: - | Q32: - | R32: 51 | S32: 41 | T32: 31
A33: Paris | B33: 11 | C33: 11 | D33: 14 | E33: 20 | F33: 19 | G33: 19 | H33: 20 | I33: 18 | J33: 20 | K33: 24 | L33: 22 | M33: 29 | N33: 26 | O33: 29 | P33: 36 | Q33: 31 | R33: 37 | S33: 37 | T33: 32
A34: Casablanca | B34: - | C34: - | D34: - | E34: - | F34: - | G34: - | H34: - | I34: - | J34: - | K34: - | L34: - | M34: - | N34: - | O34: - | P34: 61 | Q34: 51 | R34: 42 | S34: 44 | T34: 33
A35: Amsterdam | B35: 23 | C35: 16 | D35: 23 | E35: 24 | F35: 24 | G35: 31 | H35: 35 | I35: 33 | J35: 32 | K35: 34 | L35: 32 | M35: 30 | N35: 34 | O35: 44 | P35: 45 | Q35: 39 | R35: 40 | S35: 36 | T35: 34
A36: Doha | B36: - | C36: 45 | D36: 48 | E36: 45 | F36: 46 | G36: 43 | H36: 36 | I36: 34 | J36: 30 | K36: 29 | L36: 37 | M36: 34 | N36: 30 | O36: 24 | P36: 26 | Q36: 22 | R36: 20 | S36: 22 | T36: 35
A37: Kuala Lumpur | B37: - | C37: - | D37: - | E37: - | F37: 45 | G37: 45 | H37: 50 | I37: 47 | J37: 44 | K37: 37 | L37: 34 | M37: 26 | N37: 21 | O37: 22 | P37: 35 | Q37: 41 | R37: 38 | S37: 45 | T37: 36
A38: Stockholm | B38: 26 | C38: 25 | D38: 32 | E38: 33 | F38: 30 | G38: 36 | H38: 38 | I38: 37 | J38: 33 | K38: 27 | L38: 25 | M38: 27 | N38: 32 | O38: 37 | P38: 30 | Q38: 35 | R38: 36 | S38: 32 | T38: 37
A39: Busan | B39: - | C39: - | D39: - | E39: - | F39: - | G39: - | H39: - | I39: - | J39: - | K39: - | L39: - | M39: - | N39: - | O39: - | P39: 27 | Q39: 28 | R39: 24 | S39: 24 | T39: 38
A40: Dublin | B40: 21 | C40: 15 | D40: 13 | E40: 13 | F40: 9 | G40: 22 | H40: 31 | I40: 29 | J40: 33 | K40: 42 | L40: 45 | M40: 48 | N40: 55 | O40: 55 | P40: 65 | Q40: 70 | R40: 52 | S40: 46 | T40: 39
A41: Vienna | B41: 34 | C41: 34 | D41: 44 | E41: 43 | F41: 42 | G41: 46 | H41: 43 | I41: 46 | J41: 42 | K41: 41 | L41: 33 | M41: 35 | N41: 20 | O41: 20 | P41: 19 | Q41: 30 | R41: 35 | S41: 30 | T41: 40
A42: Cayman Islands | B42: 15 | C42: 23 | D42: 25 | E42: 21 | F42: 22 | G42: 26 | H42: 28 | I42: 34 | J42: 38 | K42: 45 | L42: 39 | M42: 43 | N42: 41 | O42: 39 | P42: 42 | Q42: 54 | R42: 39 | S42: 34 | T42: 41
A43: Mumbai | B43: 37 | C43: 40 | D43: 49 | E43: 50 | F43: 49 | G43: 53 | H43: 57 | I43: 56 | J43: 57 | K43: 63 | L43: 63 | M43: 62 | N43: 65 | O43: 71 | P43: 75 | Q43: 61 | R43: 53 | S43: 59 | T43: 42
A44: Sao Paulo | B44: - | C44: 47 | D44: 53 | E44: 52 | F44: 54 | G44: 40 | H44: 40 | I44: 43 | J44: 43 | K44: 48 | L44: 49 | M44: 47 | N44: 43 | O44: 38 | P44: 38 | Q44: 34 | R44: 43 | S44: 31 | T44: 43
A45: Rio de Janeiro | B45: - | C45: - | D45: - | E45: - | F45: - | G45: 59 | H45: 53 | I45: 51 | J45: 49 | K45: 52 | L45: 52 | M45: 51 | N45: 47 | O45: 31 | P45: 44 | Q45: 45 | R45: 47 | S45: 35 | T45: 44
A46: Istanbul | B46: - | C46: - | D46: - | E46: - | F46: - | G46: 71 | H46: 73 | I46: 69 | J46: 70 | K46: 61 | L46: 60 | M46: 55 | N46: 56 | O46: 43 | P46: 46 | Q46: 42 | R46: 44 | S46: 47 | T46: 45
A47: British Virgin Islands | B47: - | C47: - | D47: 26 | E47: 29 | F47: 33 | G47: 33 | H47: 37 | I47: 39 | J47: 39 | K47: 44 | L47: 44 | M47: 44 | N47: 46 | O47: 47 | P47: 43 | Q47: 47 | R47: 34 | S47: 43 | T47: 46
A48: Bangkok | B48: - | C48: - | D48: - | E48: - | F48: 50 | G48: 59 | H48: 60 | I48: 59 | J48: 60 | K48: 56 | L48: 58 | M48: 56 | N48: 58 | O48: 57 | P48: 51 | Q48: 46 | R48: 50 | S48: 48 | T48: 47
A49: Warsaw | B49: 38 | C49: 46 | D49: 55 | E49: 56 | F49: 58 | G49: 68 | H49: 66 | I49: 66 | J49: 58 | K49: 55 | L49: 53 | M49: 58 | N49: 62 | O49: 70 | P49: 59 | Q49: 68 | R49: 64 | S49: 38 | T49: 48
A50: Copenhagen | B50: 33 | C50: 37 | D50: 45 | E50: 38 | F50: 38 | G50: 40 | H50: 41 | I50: 43 | J50: 45 | K50: 33 | L50: 35 | M50: 33 | N50: 44 | O50: 48 | P50: 60 | Q50: 60 | R50: 61 | S50: 61 | T50: 49
A51: Hamilton (Bermuda) | B51: 17 | C51: 24 | D51: 28 | E51: 26 | F51: 27 | G51: 28 | H51: 31 | I51: 34 | J51: 36 | K51: 40 | L51: 42 | M51: 45 | N51: 48 | O51: 40 | P51: 55 | Q51: 58 | R51: 41 | S51: 42 | T51: 50
A52: Johannesburg | B52: - | C52: 42 | D52: 42 | E52: 45 | F52: 48 | G52: 49 | H52: 53 | I52: 53 | J52: 53 | K52: 51 | L52: 54 | M52: 53 | N52: 61 | O52: 60 | P52: 49 | Q52: 38 | R52: 32 | S52: 33 | T52: 51
A53: Brussels | B53: 30 | C53: 26 | D53: 33 | E53: 36 | F53: 32 | G53: 37 | H53: 39 | I53: 39 | J53: 40 | K53: 43 | L53: 46 | M53: 46 | N53: 45 | O53: 59 | P53: 56 | Q53: 56 | R53: 63 | S53: 62 | T53: 52
A54: Mexico City | B54: - | C54: - | D54: - | E54: - | F54: - | G54: 54 | H54: 56 | I54: 49 | J54: 51 | K54: 46 | L54: 50 | M54: 54 | N54: 54 | O54: 65 | P54: 69 | Q54: 44 | R54: 56 | S54: 69 | T54: 53
A55: Milan | B55: 29 | C55: 31 | D55: 39 | E55: 39 | F55: 40 | G55: 47 | H55: 46 | I55: 42 | J55: 40 | K55: 49 | L55: 51 | M55: 50 | N55: 37 | O55: 50 | P55: 47 | Q55: 48 | R55: 70 | S55: 65 | T55: 54
A56: Manila | B56: - | C56: - | D56: - | E56: - | F56: - | G56: 63 | H56: 65 | I56: 65 | J56: 65 | K56: 68 | L56: 68 | M56: 72 | N56: 71 | O56: 63 | P56: 67 | Q56: 59 | R56: 62 | S56: 55 | T56: 55
A57: Edinburgh | B57: 15 | C57: 20 | D57: 18 | E57: 18 | F57: 19 | G57: 27 | H57: 28 | I57: 31 | J57: 29 | K57: 31 | L57: 36 | M57: 36 | N57: 53 | O57: 61 | P57: 63 | Q57: 65 | R57: 67 | S57: 71 | T57: 56
A58: Prague | B58: 39 | C58: 44 | D58: 54 | E58: 54 | F58: 57 | G58: 64 | H58: 61 | I58: 58 | J58: 54 | K58: 50 | L58: 55 | M58: 52 | N58: 60 | O58: 72 | P58: 74 | Q58: 63 | R58: 60 | S58: 63 | T58: 57
A59: Jakarta | B59: - | C59: - | D59: - | E59: - | F59: - | G59: 61 | H59: 62 | I59: 61 | J59: 62 | K59: 64 | L59: 61 | M59: 70 | N59: 68 | O59: 54 | P59: 68 | Q59: 66 | R59: 57 | S59: 73 | T59: 58
A60: Glasgow | B60: - | C60: - | D60: 22 | E60: 26 | F60: 31 | G60: 49 | H60: 51 | I60: 45 | J60: 45 | K60: 32 | L60: 40 | M60: 38 | N60: 49 | O60: 64 | P60: 73 | Q60: 50 | R60: 66 | S60: 70 | T60: 59
A61: Helsinki | B61: 31 | C61: 32 | D61: 41 | E61: 41 | F61: 44 | G61: 58 | H61: 49 | I61: 57 | J61: 55 | K61: 38 | L61: 41 | M61: 41 | N61: 51 | O61: 56 | P61: 71 | Q61: 74 | R61: 74 | S61: 77 | T61: 60
A62: Gibraltar | B62: - | C62: - | D62: 26 | E62: 25 | F62: 33 | G62: 51 | H62: 52 | I62: 54 | J62: 55 | K62: 57 | L62: 62 | M62: 57 | N62: 59 | O62: 69 | P62: 52 | Q62: 53 | R62: 45 | S62: 56 | T62: 61
A63: Jersey | B63: - | C63: - | D63: 16 | E63: 13 | F63: 13 | G63: 14 | H63: 18 | I63: 22 | J63: 23 | K63: 21 | L63: 21 | M63: 20 | N63: 28 | O63: 28 | P63: 40 | Q63: 62 | R63: 54 | S63: 53 | T63: 62
A64: Rome | B64: 36 | C64: 39 | D64: 50 | E64: 53 | F64: 55 | G64: 56 | H64: 48 | I64: 49 | J64: 47 | K64: 53 | L64: 57 | M64: 61 | N64: 40 | O64: 35 | P64: 53 | Q64: 55 | R64: 72 | S64: 76 | T64: 63
A65: Madrid | B65: 26 | C65: 33 | D65: 43 | E65: 45 | F65: 47 | G65: 40 | H65: 44 | I65: 38 | J65: 37 | K65: 47 | L65: 48 | M65: 49 | N65: 50 | O65: 53 | P65: 70 | Q65: 73 | R65: 73 | S65: 79 | T65: 64
A66: Oslo | B66: 32 | C66: 36 | D66: 46 | E66: 41 | F66: 39 | G66: 55 | H66: 44 | I66: 52 | J66: 52 | K66: 36 | L66: 38 | M66: 32 | N66: 29 | O66: 26 | P66: 33 | Q66: 57 | R66: 65 | S66: 67 | T66: 65
A67: Guernsey | B67: - | C67: - | D67: 19 | E67: 13 | F67: 11 | G67: 15 | H67: 22 | I67: 26 | J67: 27 | K67: 30 | L67: 30 | M67: 28 | N67: 31 | O67: 36 | P67: 41 | Q67: 67 | R67: 55 | S67: 54 | T67: 66
A68: Moscow | B68: 43 | C68: 49 | D68: 56 | E68: 57 | F68: 59 | G68: 66 | H68: 67 | I68: 67 | J68: 67 | K68: 60 | L68: 64 | M68: 63 | N68: 64 | O68: 68 | P68: 72 | Q68: 79 | R68: 75 | S68: 78 | T68: 67
A69: Isle of Man | B69: - | C69: 21 | D69: 20 | E69: 19 | F69: 18 | G69: 24 | H69: 24 | I69: 32 | J69: 35 | K69: 39 | L69: 43 | M69: 39 | N69: 42 | O69: 41 | P69: 50 | Q69: 64 | R69: 58 | S69: 58 | T69: 68
A70: Manama | B70: - | C70: 43 | D70: 40 | E70: 44 | F70: 42 | G70: 43 | H70: 41 | I70: 41 | J70: 48 | K70: 54 | L70: 56 | M70: 60 | N70: 63 | O70: 51 | P70: 39 | Q70: 52 | R70: 46 | S70: 50 | T70: 69
A71: Riyadh | B71: - | C71: - | D71: - | E71: - | F71: - | G71: 67 | H71: 68 | I71: 68 | J71: 69 | K71: 65 | L71: 69 | M71: 64 | N71: 33 | O71: 46 | P71: 31 | Q71: 21 | R71: 14 | S71: 57 | T71: 70
A72: Riga | B72: - | C72: - | D72: - | E72: - | F72: - | G72: - | H72: - | I72: - | J72: - | K72: - | L72: - | M72: - | N72: - | O72: - | P72: - | Q72: - | R72: - | S72: - | T72: 71
A73: Panama | B73: - | C73: - | D73: - | E73: - | F73: - | G73: - | H73: - | I73: - | J73: - | K73: - | L73: - | M73: - | N73: 66 | O73: 62 | P73: 58 | Q73: 49 | R73: 48 | S73: 52 | T73: 72
A74: Port Louis | B74: - | C74: - | D74: - | E74: - | F74: - | G74: 57 | H74: 59 | I74: 60 | J74: 61 | K74: 67 | L74: 65 | M74: 66 | N74: 69 | O74: 67 | P74: 62 | Q74: 69 | R74: 68 | S74: 64 | T74: 73
A75: Budapest | B75: 42 | C75: 50 | D75: 58 | E75: 59 | F75: 61 | G75: 73 | H75: 71 | I75: 71 | J75: 71 | K75: 72 | L75: 73 | M75: 74 | N75: 77 | O75: 76 | P75: 76 | Q75: 76 | R75: 76 | S75: 74 | T75: 74
A76: Lisbon | B76: 39 | C76: 48 | D76: 57 | E76: 55 | F76: 56 | G76: 65 | H76: 64 | I76: 61 | J76: 63 | K76: 59 | L76: 67 | M76: 73 | N76: 75 | O76: 74 | P76: 79 | Q76: 77 | R76: 77 | S76: 66 | T76: 75
A77: Liechtenstein | B77: - | C77: - | D77: - | E77: - | F77: - | G77: - | H77: - | I77: - | J77: - | K77: - | L77: - | M77: - | N77: - | O77: - | P77: - | Q77: - | R77: - | S77: 60 | T77: 76
A78: Almaty | B78: - | C78: - | D78: - | E78: - | F78: - | G78: - | H78: - | I78: - | J78: - | K78: - | L78: - | M78: - | N78: - | O78: - | P78: 57 | Q78: 43 | R78: 49 | S78: 51 | T78: 77
A79: Tallinn | B79: - | C79: - | D79: - | E79: - | F79: - | G79: 70 | H79: 70 | I79: 73 | J79: 73 | K79: 66 | L79: 70 | M79: 65 | N79: 70 | O79: 77 | P79: 80 | Q79: 80 | R79: 80 | S79: 82 | T79: 78
A80: Qingdao | B80: - | C80: - | D80: - | E80: - | F80: - | G80: - | H80: - | I80: - | J80: - | K80: - | L80: - | M80: - | N80: - | O80: - | P80: - | Q80: - | R80: - | S80: - | T80: 79
A81: Monaco | B81: - | C81: - | D81: 38 | E81: 37 | F81: 37 | G81: 39 | H81: 47 | I81: 48 | J81: 50 | K81: 58 | L81: 59 | M81: 59 | N81: 35 | O81: 23 | P81: 24 | Q81: 29 | R81: 59 | S81: 72 | T81: 80
A82: Valletta | B82: - | C82: - | D82: - | E82: - | F82: - | G82: 51 | H82: 55 | I82: 54 | J82: 58 | K82: 69 | L82: 71 | M82: 68 | N82: 67 | O82: 52 | P82: 66 | Q82: 75 | R82: 71 | S82: 68 | T82: 81
A83: St Petersburg | B83: - | C83: - | D83: - | E83: - | F83: - | G83: 69 | H83: 69 | I83: 70 | J83: 68 | K83: 70 | L83: 72 | M83: 69 | N83: 73 | O83: 75 | P83: 77 | Q83: 72 | R83: 78 | S83: 81 | T83: 82
A84: Nicosia | B84: - | C84: - | D84: - | E84: - | F84: - | G84: - | H84: - | I84: - | J84: - | K84: - | L84: - | M84: - | N84: 74 | O84: 73 | P84: 78 | Q84: 78 | R84: 79 | S84: 80 | T84: 83
A85: Bahamas | B85: - | C85: - | D85: 36 | E85: 35 | F85: 36 | G85: 48 | H85: 58 | I85: 63 | J85: 66 | K85: 71 | L85: 74 | M85: 71 | N85: 72 | O85: 66 | P85: 64 | Q85: 71 | R85: 69 | S85: 75 | T85: 84
A86: Reykjavik | B86: - | C86: - | D86: - | E86: - | F86: - | G86: 74 | H86: 74 | I86: 74 | J86: 74 | K86: 73 | L86: 75 | M86: 75 | N86: 76 | O86: 78 | P86: 81 | Q86: 82 | R86: 82 | S86: 84 | T86: 85
A87: Athens | B87: 44 | C87: 51 | D87: 59 | E87: 58 | F87: 60 | G87: 72 | H87: 72 | I87: 72 | J87: 72 | K87: 74 | L87: 76 | M87: 76 | N87: 78 | O87: 79 | P87: 82 | Q87: 81 | R87: 81 | S87: 83 | T87: 86
A88: Buenos Aires | B88: - | C88: - | D88: - | E88: - | F88: - | G88: 62 | H88: 62 | I88: 64 | J88: 63 | K88: 62 | L88: 66 | M88: 67 | N88: 52 | O88: 45 | P88: 25 | Q88: 40 | R88: - | S88: - | T88: -
A89: Wellington | B89: - | C89: - | D89: - | E89: - | F89: - | G89: 54 | H89: - | I89: - | J89: 38 | K89: - | L89: - | M89: - | N89: - | O89: - | P89: - | Q89: - | R89: - | S89: - | T89: -

Sheet Associate Centres
A1: Centre | B1: Assessments in the last 24 Months | C1: Mean
A2: Guangzhou | B2: 162 | C2: 685
A3: New Delhi | B3: 116 | C3: 553
A4: Baku | B4: 103 | C4: 502
A5: Tianjin | B5: 100 | C5: 669
A6: Trinidad and Tobago | B6: 100 | C6: 593
A7: Buenos Aires | B7: 87 | C7: 530
A8: Sofia | B8: 85 | C8: 544
A9: Nairobi | B9: 78 | C9: 501
A10: Santiago | B10: 69 | C10: 635
A11: Wellington | B11: 68 | C11: 496
A12: Wellington | B12: 58 | C12: 705
A13: Kuwait City | B13: 51 | C13: 573
A14: Barbados | B14: 31 | C14: 513
A15: Cape Town | B15: 22 | C15: 623
A16: Hamburg | B16: 15 | C16: 587
A17: Tehran | B17: 10 | C17: 400

Sheet Mean - Top 5 by Region
A1: Centre | B1: GFCI 1 | C1: GFCI 2 | D1: GFCI 3 | E1: GFCI 4 | F1: GFCI 5 | G1: GFCI 6 | H1: GFCI 7 | I1: GFCI 8 | J1: GFCI 9 | K1: GFCI 10 | L1: GFCI 11 | M1: GFCI 12 | N1: GFCI 13 | O1: GFCI 14 | P1: GFCI 15 | Q1: GFCI 16 | R1: GFCI 17 | S1: GFCI 18 | T1: GFCI 19
A2: Asia/Pacific | B2: 598 | C2: 597 | D2: 601 | E2: 623 | F2: 596 | G2: 671 | H2: 689 | I2: 681 | J2: 682 | K2: 698 | L2: 710 | M2: 697 | N2: 724 | O2: 724 | P2: 729 | Q2: 725 | R2: 724 | S2: 732 | T2: 731
A3: Eastern Europe and Central Asia | B3: 456 | C3: 446 | D3: 435 | E3: 434 | F3: 389 | G3: 461 | H3: 509 | I3: 512 | J3: 521 | K3: 583 | L3: 591 | M3: 594 | N3: 608 | O3: 573 | P3: 608 | Q3: 629 | R3: 613 | S3: 638 | T3: 621
A4: Latin America & the Caribbean | B4: 450 | C4: 434 | D4: 513 | E4: 528 | F4: 495 | G4: 545 | H4: 570 | I4: 561 | J4: 561 | K4: 602 | L4: 606 | M4: 606 | N4: 637 | O4: 627 | P4: 653 | Q4: 653 | R4: 650 | S4: 665 | T4: 636
A5: Middle East & Africa | B5: 570 | C5: 508 | D5: 538 | E5: 561 | F5: 544 | G5: 544 | H5: 575 | I5: 567 | J5: 567 | K5: 611 | L5: 615 | M5: 624 | N5: 660 | O5: 652 | P5: 685 | Q5: 684 | R5: 689 | S5: 687 | T5: 673
A6: North America | B6: 638 | C6: 644 | D6: 645 | E6: 649 | F6: 641 | G6: 664 | H6: 678 | I6: 677 | J6: 678 | K6: 696 | L6: 700 | M6: 695 | N6: 716 | O6: 716 | P6: 725 | Q6: 722 | R6: 721 | S6: 727 | T6: 724
A7: Western Europe | B7: 653 | C7: 672 | D7: 669 | E7: 674 | F7: 665 | G7: 682 | H7: 685 | I7: 679 | J7: 677 | K7: 687 | L7: 696 | M7: 696 | N7: 726 | O7: 724 | P7: 729 | Q7: 717 | R7: 718 | S7: 725 | T7: 719

Sheet Top 5
A1: Centre | B1: GFCI 1 | C1: GFCI 2 | D1: GFCI 3 | E1: GFCI 4 | F1: GFCI 5 | G1: GFCI 6 | H1: GFCI 7 | I1: GFCI 8 | J1: GFCI 9 | K1: GFCI 10 | L1: GFCI 11 | M1: GFCI 12 | N1: GFCI 13 | O1: GFCI 14 | P1: GFCI 15 | Q1: GFCI 16 | R1: GFCI 17 | S1: GFCI18 | T1: GFCI 19
A2: London | B2: 765 | C2: 806 | D2: 795 | E2: 791 | F2: 781 | G2: 790 | H2: 775 | I2: 772 | J2: 775 | K2: 774 | L2: 781 | M2: 785 | N2: 807 | O2: 794 | P2: 784 | Q2: 777 | R2: 784 | S2: 796 | T2: 800
A3: New York | B3: 760 | C3: 787 | D3: 786 | E3: 774 | F3: 768 | G3: 774 | H3: 775 | I3: 770 | J3: 769 | K3: 773 | L3: 772 | M3: 765 | N3: 787 | O3: 779 | P3: 786 | Q3: 778 | R3: 785 | S3: 788 | T3: 792
A4: Hong Kong | B4: 685 | C4: 697 | D4: 695 | E4: 700 | F4: 684 | G4: 729 | H4: 739 | I4: 760 | J4: 759 | K4: 770 | L4: 754 | M4: 733 | N4: 761 | O4: 759 | P4: 761 | Q4: 756 | R4: 758 | S4: 755 | T4: 753
A5: Singapore | B5: 661 | C5: 673 | D5: 675 | E5: 700 | F5: 683 | G5: 719 | H5: 733 | I5: 728 | J5: 722 | K5: 735 | L5: 729 | M5: 725 | N5: 759 | O5: 751 | P5: 751 | Q5: 746 | R5: 754 | S5: 750 | T5: 755
A6: Tokyo | B6: 633 | C6: 625 | D6: 628 | E6: 642 | F6: 611 | G6: 674 | H6: 692 | I6: 697 | J6: 694 | K6: 695 | L6: 693 | M6: 684 | N6: 718 | O6: 720 | P6: 722 | Q6: 718 | R6: 722 | S6: 725 | T6: 728

Sheet Centres to be More Significant
A1: Centre | B1: Mentions within past 24 months
A2: Shanghai | B2: 105
A3: Singapore | B3: 89
A4: Casablanca | B4: 76
A5: Hong Kong | B5: 62
A6: Dalian | B6: 46
A7: Dubai | B7: 40
A8: London | B8: 33
A9: Shenzhen | B9: 30
A10: Gibraltar | B10: 29
A11: Beijing | B11: 27
A12: Luxembourg | B12: 25
A13: Seoul | B13: 13
A14: Vancouver | B14: 13
A15: Almaty | B15: 13
A16: Toronto | B16: 12
A17: New York | B17: 12

Sheet Areas of Competitiveness
A1: Rank | B1: Business Environment | C1: Financial Sector Development | D1: Infrastructure | E1: Human Capital | F1: Reputational & General
A2: 1 | B2: London (-) | C2: London (-) | D2: London (-) | E2: London (-) | F2: London (-)
A3: 2 | B3: New York (-) | C3: New York (-) | D3: New York (-) | E3: New York (-) | F3: New York (-)
A4: 3 | B4: Hong Kong (-) | C4: Hong Kong (-) | D4: Hong Kong (-) | E4: Singapore (+1) | F4: Hong Kong (-)
A5: 4 | B5: Singapore (-) | C5: Singapore (-) | D5: Singapore (-) | E5: Hong Kong (-1) | F5: Singapore (-)
A6: 5 | B6: Los Angeles (+31) | C6: Tokyo (-) | D6: Tokyo (-) | E6: Los Angeles (+34) | F6: Washington DC (+8)
A7: 6 | B7: Chicago (+4) | C7: Boston (-) | D7: San Francisco (+7) | E7: Tokyo (-1) | F7: Chicago (+1)
A8: 7 | B8: Tokyo (-2) | C8: San Francisco (-) | D8: Zurich (-) | E8: Chicago (+1) | F8: Los Angeles (+28)
A9: 8 | B9: Toronto (+1) | C9: Chicago (-2) | D9: Seoul (-2) | E9: San Francisco (-2) | F9: Sydney (-2)
A10: 9 | B10: Sydney (+2) | C10: Washington DC (-2) | D10: Sydney (+2) | E10: Washington DC (-) | F10: San Francisco (-)
A11: 10 | B11: Zurich (-3) | C11: Zurich (-) | D11: Washington DC (+10) | E11: Shenzhen (+14) | F11: Boston (-)
A14: Area of Competitiveness | B14: Number of Mentions | C14: Main Issues
A15: Business Environment | B15: 936 | C15: Regulation is more important than ever and needs to be clear and fair
C16: Corruption is even more high profile than before
A17: Human Capital | B17: 831 | C17: Centres becoming more competitive in attracting skilled people
C18: More awareness of a 'brain drain' and demographics in developing economies
A19: Taxation | B19: 796 | C19: Tax rules must be harmonised internationally
C20: Tax should be transparent and reasonable - and seen to be reasonable
A21: Reputation | B21: 714 | C21: Security, safety and human rights are becoming even more important
C22: Centres need to market themselves more - they are in a competitive marketplace
A23: Infrastructure | B23: 707 | C23: Road transport is becoming an importat issue in many centres
C24: Lack of direct flights into certain centres holds them back
A25: Financial Sector Development | B25: 609 | C25: More focus on the importance of the EU clusterto London
C26: Physical proximity still very important

Sheet Profiles
B1: Broad & Deep | C1: Relatively Broad | D1: Relatively Deep | E1: Emerging
A2: Global | B2: Global Leaders | C2: Global Diversified | D2: Global Specialists | E2: Global Contenders
B3: Amsterdam | C3: Brussels | D3: Beijing | E3: Jersey
B4: Dublin | C4: Shanghai | D4: Dubai
B5: Frankfurt | D5: Luxembourg
B6: Geneva | D6: Moscow
B7: Hong Kong
B8: London
B9: New York
B10: Paris
B11: Singapore
B12: Toronto
B13: Zurich
A15: Transnational | B15: Established Transnational | C15: Transnational Diversified | D15: Transnational Specialists | E15: Transnational Contenders
B16: Boston | C16: Copenhagen | D16: British Virgin Islands | E16: Abu Dhabi
B17: Chicago | C17: Edinburgh | D17: Casablanca | E17: Almaty
B18: Istanbul | C18: Kuala Lumpur | D18: Cayman Islands | E18: Bangkok
B19: Madrid | C19: Lisbon | D19: Doha | E19: Bahamas
B20: Montreal | C20: Los Angeles | D20: Guernsey | E20: Dalian
B21: Munich | C21: Prague | D21: Mauritius | E21: Gibraltar
B22: San Francisco | D22: Shenzhen
B23: Seoul
B24: Stockholm
B25: Sydney
B26: Tokyo
B27: Vancouver
B28: Washington DC
A33: Local | B33: Established Players | C33: Local Diversified | D33: Local Specialists | E33: Evolving Centres
B34: Tel Aviv | C34: Budapest | D34: Panama | E34: Athens
B35: Warsaw | C35: Busan | D35: Qingdao | E35: Bahrain
C36: Calgary | D36: Riga | E36: Cyprus
C37: Glasgow | D37: Rio de Janeiro | E37: Bermuda
C38: Helsinki | D38: Sao Paulo | E38: Isle of Man
C39: Melbourne | D39: Taipei | E39: Jakarta
C40: Mexico City | D40: Tallinn | E40: Johannesburg
C41: Milan | E41: Liechtenstein
C42: Osaka | E42: Malta
C43: Oslo | E43: Manila
C44: Rome | E44: Monaco
C45: Vienna | E45: Mumbai
E46: Reykjavik
E47: Riyadh
E48: St Petersburg

Sheet Western Europe
A1: Centre | B1: GFCI 1 | C1: GFCI 2 | D1: GFCI 3 | E1: GFCI 4 | F1: GFCI 5 | G1: GFCI 6 | H1: GFCI 7 | I1: GFCI 8 | J1: GFCI 9 | K1: GFCI 10 | L1: GFCI 11 | M1: GFCI 12 | N1: GFCI 13 | O1: GFCI 14 | P1: GFCI 15 | Q1: GFCI 16 | R1: GFCI 17 | S1: GFCI 18 | T1: GFCI 19
A2: Developed | B2: 653 | C2: 672 | D2: 669.4 | E2: 674 | F2: 665 | G2: 682.4 | H2: 685.2 | I2: 679 | J2: 676.6 | K2: 687.2 | L2: 696 | M2: 696.2 | N2: 726.4 | O2: 724 | P2: 728.6
A3: Emerging | C3: 828 | D3: -6.64101439 | E3: 841.8987342 | F3: 8
A4: London | B4: 765 | C4: 806 | D4: 795 | E4: 791 | F4: 781 | G4: 790 | H4: 775 | I4: 772 | J4: 775 | K4: 774 | L4: 781 | M4: 785 | N4: 807 | O4: 794 | P4: 784 | Q4: 777 | R4: 784 | S4: 796 | T4: 800
A5: Zurich | B5: 656 | C5: 666 | D5: 665 | E5: 676 | F5: 659 | G5: 676 | H5: 677 | I5: 669 | J5: 665 | K5: 686 | L5: 689 | M5: 691 | N5: 723 | O5: 718 | P5: 730 | Q5: 717 | R5: 719 | S5: 715 | T5: 714
A6: Luxembourg | B6: 570 | C6: 596 | D6: 605 | E6: 622 | F6: 612 | G6: 637 | H6: 643 | I6: 634 | J6: 630 | K6: 637 | L6: 648 | M6: 646 | N6: 687 | O6: 696 | P6: 707 | Q6: 697 | R6: 694 | S6: 700 | T6: 698
A7: Geneva | B7: 627 | C7: 645 | D7: 640 | E7: 645 | F7: 638 | G7: 660 | H7: 671 | I7: 661 | J7: 659 | K7: 672 | L7: 679 | M7: 682 | N7: 712 | O7: 710 | P7: 713 | Q7: 701 | R7: 702 | S7: 707 | T7: 694
A8: Frankfurt | B8: 647 | C8: 649 | D8: 642 | E8: 636 | F8: 633 | G8: 649 | H8: 660 | I8: 659 | J8: 654 | K8: 667 | L8: 681 | M8: 677 | N8: 703 | O8: 702 | P8: 709 | Q8: 695 | R8: 692 | S8: 706 | T8: 689
A9: Dublin | B9: 578 | C9: 605 | D9: 613 | E9: 622 | F9: 618 | G9: 613 | H9: 612 | I9: 605 | J9: 592 | K9: 614 | L9: 621 | M9: 618 | N9: 627 | O9: 605 | P9: 616 | Q9: 607 | R9: 627 | S9: 654 | T9: 643
A32: City | B32: GFCI 19 Rank | C32: GFCI 19 Rating | D32: GFCI 18 Rank | E32: GFCI 18 Rating | F32: Change in Rank | G32: Change in Rating
A33: London | B33: 1 | C33: 800 | D33: 1 | E33: 796 | F33: - | G33: ▲4
A34: Zurich | B34: 6 | C34: 714 | D34: 7 | E34: 715 | F34: ▲1 | G34: ▼1
A35: Luxembourg | B35: 14 | C35: 698 | D35: 19 | E35: 700 | F35: ▲5 | G35: ▼2
A36: Geneva | B36: 15 | C36: 694 | D36: 13 | E36: 707 | F36: ▼2 | G36: ▼13
A37: Frankfurt | B37: 18 | C37: 689 | D37: 14 | E37: 706 | F37: ▼4 | G37: ▼17
A38: Munich | B38: 27 | C38: 672 | D38: 40 | E38: 661 | F38: ▲13 | G38: ▲11
A39: Paris | B39: 32 | C39: 667 | D39: 37 | E39: 664 | F39: ▲5 | G39: ▲3
A40: Amsterdam | B40: 34 | C40: 664 | D40: 36 | E40: 665 | F40: ▲2 | G40: ▼1
A41: Stockholm | B41: 37 | C41: 648 | D41: 32 | E41: 671 | F41: ▼5 | G41: ▼23
A42: Dublin | B42: 39 | C42: 643 | D42: 46 | E42: 654 | F42: ▲7 | G42: ▼11
A43: Vienna | B43: 40 | C43: 642 | D43: 30 | E43: 674 | F43: ▼10 | G43: ▼32
A44: Copenhagen | B44: 49 | C44: 630 | D44: 61 | E44: 625 | F44: ▲12 | G44: ▲5
A45: Brussels | B45: 52 | C45: 627 | D45: 62 | E45: 624 | F45: ▲10 | G45: ▲3
A46: Milan | B46: 54 | C46: 625 | D46: 65 | E46: 621 | F46: ▲11 | G46: ▲4
A47: Edinburgh | B47: 56 | C47: 623 | D47: 71 | E47: 613 | F47: ▲15 | G47: ▲10
A48: Glasgow | B48: 59 | C48: 620 | D48: 70 | E48: 615 | F48: ▲11 | G48: ▲5
A49: Helsinki | B49: 60 | C49: 619 | D49: 77 | E49: 604 | F49: ▲17 | G49: ▲15
A50: Gibraltar | B50: 61 | C50: 618 | D50: 56 | E50: 630 | F50: ▼5 | G50: ▼12
A51: Jersey | B51: 62 | C51: 617 | D51: 53 | E51: 633 | F51: ▼9 | G51: ▼16
A52: Rome | B52: 63 | C52: 616 | D52: 76 | E52: 605 | F52: ▲13 | G52: ▲11
A53: Madrid | B53: 64 | C53: 615 | D53: 79 | E53: 597 | F53: ▲15 | G53: ▲18
A54: Oslo | B54: 65 | C54: 614 | D54: 67 | E54: 618 | F54: ▲2 | G54: ▼4
A55: Guernsey | B55: 66 | C55: 613 | D55: 54 | E55: 632 | F55: ▼12 | G55: ▼19
A56: Isle of Man | B56: 68 | C56: 610 | D56: 58 | E56: 628 | F56: ▼10 | G56: ▼18
A57: Lisbon | B57: 75 | C57: 599 | D57: 66 | E57: 619 | F57: ▼9 | G57: ▼20
A58: Liechtenstein | B58: 76 | C58: 598 | D58: 60 | E58: 626 | F58: ▼16 | G58: ▼28
A59: Monaco | B59: 80 | C59: 590 | D59: 72 | E59: 612 | F59: ▼8 | G59: ▼22
A60: Malta | B60: 81 | C60: 587 | D60: 68 | E60: 617 | F60: ▼13 | G60: ▼30
A61: Reykjavik | B61: 85 | C61: 562 | D61: 84 | E61: 537 | F61: ▼1 | G61: ▲25

Sheet Eastern Europe & Central Asia
A1: Centre | B1: GFCI 1 | C1: GFCI 2 | D1: GFCI 3 | E1: GFCI 4 | F1: GFCI 5 | G1: GFCI 6 | H1: GFCI 7 | I1: GFCI 8 | J1: GFCI 9 | K1: GFCI 10 | L1: GFCI 11 | M1: GFCI 12 | N1: GFCI 13 | O1: GFCI 14 | P1: GFCI 15 | Q1: GFCI 16 | R1: GFCI 17 | S1: GFCI 18 | T1: GFCI 19
A2: Developed | B2: =AVERAGE(B5:B22) -> 443.3333333 | C2: 436 | D2: 431 | E2: 427.3333333 | F2: 380 | G2: 470 | H2: 526.3333333 | I2: 522 | J2: 530.3333333 | K2: 593 | L2: 597 | M2: 595.6666667 | N2: 608.3333333 | O2: 572 | P2: 602
A3: Emerging | B3: =AVERAGE(#REF!) ->  | C3: =AVERAGE(#REF!) ->  | D3: =AVERAGE(#REF!) ->  | E3: =AVERAGE(#REF!) ->  | F3: =AVERAGE(#REF!) ->  | G3: =AVERAGE(#REF!) ->  | H3: =AVERAGE(#REF!) ->  | I3: =AVERAGE(#REF!) ->  | J3: =AVERAGE(#REF!) ->  | K3: =AVERAGE(#REF!) ->  | L3: =AVERAGE(#REF!) ->  | M3: =AVERAGE(#REF!) ->  | N3: =AVERAGE(#REF!) ->  | O3: =AVERAGE(#REF!) ->  | P3: =AVERAGE(#REF!) -> 
A4: Istanbul | G4: 442 | H4: 470 | I4: 496 | J4: 494 | K4: 580 | L4: 590 | M4: 601 | N4: 626 | O4: 633 | P4: 651 | Q4: 655 | R4: 643 | S4: 653 | T4: 636
A5: Warsaw | B5: 459 | C5: 438 | D5: 433 | E5: 424 | F5: 381 | G5: 456 | H5: 520 | I5: 517 | J5: 538 | K5: 593 | L5: 606 | M5: 598 | N5: 608 | O5: 571 | P5: 626 | Q5: 612 | R5: 606 | S5: 663 | T5: 631
A6: Prague | B6: 452 | C6: 454 | D6: 437 | E6: 444 | F6: 396 | G6: 492 | H6: 543 | I6: 543 | J6: 547 | K6: 605 | L6: 602 | M6: 604 | N6: 611 | O6: 565 | P6: 589 | Q6: 623 | R6: 613 | S6: 623 | T6: 622
A7: Moscow | B7: 419 | C7: 415 | D7: 423 | E7: 414 | F7: 363 | G7: 462 | H7: 516 | I7: 506 | J7: 506 | K7: 581 | L7: 583 | M7: 585 | N7: 606 | O7: 580 | P7: 591 | Q7: 536 | R7: 579 | S7: 598 | T7: 611
A8: Riga | S8: 605 | T8: 605
A32: City | B32: GFCI 19 Rank | C32: GFCI 19 Rating | D32: GFCI 18 Rank | E32: GFCI 18 Rating | F32: Change in Rank | G32: Change in Rating
A33: Istanbul | B33: 45 | C33: 636 | D33: 47 | E33: 653 | F33: ▲2 | G33: ▼17
A34: Warsaw | B34: 48 | C34: 631 | D34: 38 | E34: 663 | F34: ▼10 | G34: ▼32
A35: Prague | B35: 57 | C35: 622 | D35: 63 | E35: 623 | F35: ▲6 | G35: ▼1
A36: Moscow | B36: 67 | C36: 611 | D36: 78 | E36: 598 | F36: ▲11 | G36: ▲13
A37: Riga | B37: 71 | C37: 605 | D37: - | E37: - | F37: - | G37: -
A38: Budapest | B38: 74 | C38: 600 | D38: 74 | E38: 609 | F38: - | G38: ▼9
A39: Almaty | B39: 77 | C39: 597 | D39: 51 | E39: 640 | F39: ▼26 | G39: ▼43
A40: Tallinn | B40: 78 | C40: 596 | D40: 82 | E40: 550 | F40: ▲4 | G40: ▲46
A41: St Petersburg | B41: 82 | C41: 585 | D41: 81 | E41: 552 | F41: ▼1 | G41: ▲33
A42: Cyprus | B42: 83 | C42: 576 | D42: 80 | E42: 587 | F42: ▼3 | G42: ▼11
A43: Athens | B43: 86 | C43: 558 | D43: 83 | E43: 540 | F43: ▼3 | G43: ▲18

Sheet Asia&Pacific
A1: Centre | B1: GFCI 1 | C1: GFCI 2 | D1: GFCI 3 | E1: GFCI 4 | F1: GFCI 5 | G1: GFCI 6 | H1: GFCI 7 | I1: GFCI 8 | J1: GFCI 9 | K1: GFCI 10 | L1: GFCI 11 | M1: GFCI 12 | N1: GFCI 13 | O1: GFCI 14 | P1: GFCI 15 | Q1: GFCI 16 | R1: GFCI 17 | S1: GFCI 18 | T1: GFCI 19
A2: Developed
A3: Emerging
A4: Hong Kong | B4: 685 | C4: 697 | D4: 695 | E4: 700 | F4: 684 | G4: 729 | H4: 739 | I4: 760 | J4: 759 | K4: 770 | L4: 754 | M4: 733 | N4: 761 | O4: 759 | P4: 761 | Q4: 756 | R4: 758 | S4: 755 | T4: 753
A5: Singapore | B5: 661 | C5: 673 | D5: 675 | E5: 701 | F5: 687 | G5: 719 | H5: 733 | I5: 728 | J5: 722 | K5: 735 | L5: 729 | M5: 725 | N5: 759 | O5: 751 | P5: 751 | Q5: 746 | R5: 754 | S5: 750 | T5: 755
A6: Tokyo | B6: 633 | C6: 625 | D6: 628 | E6: 642 | F6: 611 | G6: 674 | H6: 692 | I6: 697 | J6: 694 | K6: 695 | L6: 693 | M6: 684 | N6: 718 | O6: 720 | P6: 722 | Q6: 718 | R6: 722 | S6: 725 | T6: 728
A7: Seoul | B7: 432 | C7: 464 | D7: 455 | E7: 502 | F7: 462 | G7: 576 | H7: 615 | I7: 621 | J7: 651 | K7: 679 | L7: 686 | M7: 685 | N7: 710 | O7: 701 | P7: 718 | Q7: 715 | R7: 718 | S7: 724 | T7: 705
A8: Shanghai | B8: 578 | C8: 527 | D8: 554 | E8: 568 | F8: 538 | G8: 655 | H8: 668 | I8: 693 | J8: 694 | K8: 724 | L8: 687 | M8: 656 | N8: 674 | O8: 690 | P8: 695 | Q8: 690 | R8: 695 | S8: 698 | T8: 693
A33: City | B33: GFCI 19 Rank | C33: GFCI 19 Rating | D33: GFCI 18 Rank | E33: GFCI 18 Rating | F33: Change in Rank | G33: Change in Rating
A34: Singapore | B34: 3 | C34: 755 | D34: 4 | E34: 750 | F34: ▲1 | G34: ▲5
A35: Hong Kong | B35: 4 | C35: 753 | D35: 3 | E35: 755 | F35: ▼1 | G35: ▼2
A36: Tokyo | B36: 5 | C36: 728 | D36: 5 | E36: 725 | F36: - | G36: ▲3
A37: Seoul | B37: 12 | C37: 705 | D37: 6 | E37: 724 | F37: ▼6 | G37: ▼19
A38: Shanghai | B38: 16 | C38: 693 | D38: 21 | E38: 698 | F38: ▲5 | G38: ▼5
A39: Sydney | B39: 17 | C39: 692 | D39: 15 | E39: 705 | F39: ▼2 | G39: ▼13
A40: Shenzhen | B40: 19 | C40: 688 | D40: 23 | E40: 694 | F40: ▲4 | G40: ▼6
A41: Osaka | B41: 20 | C41: 687 | D41: 20 | E41: 699 | F41: - | G41: ▼12
A42: Beijing | B42: 23 | C42: 682 | D42: 29 | E42: 676 | F42: ▲6 | G42: ▲6
A43: Taipei | B43: 24 | C43: 677 | D43: 26 | E43: 686 | F43: ▲2 | G43: ▼9
A44: Melbourne | B44: 30 | C44: 669 | D44: 27 | E44: 685 | F44: ▼3 | G44: ▼16
A45: Dalian | B45: 31 | C45: 668 | D45: 41 | E45: 660 | F45: ▲10 | G45: ▲8
A46: Kuala Lumpur | B46: 36 | C46: 649 | D46: 45 | E46: 656 | F46: ▲9 | G46: ▼7
A47: Busan | B47: 38 | C47: 644 | D47: 24 | E47: 690 | F47: ▼14 | G47: ▼46
A48: Mumbai | B48: 42 | C48: 640 | D48: 59 | E48: 627 | F48: ▲17 | G48: ▲13
A49: Bangkok | B49: 47 | C49: 633 | D49: 48 | E49: 651 | F49: ▲1 | G49: ▼18
A50: Manila | B50: 55 | C50: 624 | D50: 55 | E50: 631 | F50: - | G50: ▼7
A51: Jakarta | B51: 58 | C51: 621 | D51: 73 | E51: 610 | F51: ▲15 | G51: ▲11
A52: Qingdao | B52: 79 | C52: 594 | D52: - | E52: - | F52: - | G52: -

Sheet North America
A1: Centre | B1: GFCI 1 | C1: GFCI 2 | D1: GFCI 3 | E1: GFCI 4 | F1: GFCI 5 | G1: GFCI 6 | H1: GFCI 7 | I1: GFCI 8 | J1: GFCI 9 | K1: GFCI 10 | L1: GFCI 11 | M1: GFCI 12 | N1: GFCI 13 | O1: GFCI 14 | P1: GFCI 15 | Q1: GFCI 16 | R1: GFCI 17 | S1: GFCI 18 | T1: GFCI 19
A2: New York | B2: 760 | C2: 787 | D2: 786 | E2: 774 | F2: 768 | G2: 774 | H2: 775 | I2: 770 | J2: 769 | K2: 773 | L2: 772 | M2: 765 | N2: 787 | O2: 779 | P2: 786 | Q2: 778 | R2: 785 | S2: 788 | T2: 792
A3: San Francisco | B3: 611 | C3: 608 | D3: 614 | E3: 620 | F3: 609 | G3: 634 | H3: 651 | I3: 654 | J3: 655 | K3: 681 | L3: 683 | M3: 678 | N3: 695 | O3: 697 | P3: 711 | Q3: 719 | R3: 708 | S3: 712 | T3: 711
A4: Boston | B4: 609 | C4: 621 | D4: 618 | E4: 625 | F4: 618 | G4: 634 | H4: 652 | I4: 655 | J4: 656 | K4: 678 | L4: 684 | M4: 680 | N4: 711 | O4: 714 | P4: 715 | Q4: 705 | R4: 706 | S4: 709 | T4: 709
A5: Washington DC | B5: 594 | C5: 589 | D5: 597 | E5: 600 | F5: 596 | G5: 630 | H5: 647 | I5: 649 | J5: 650 | K5: 670 | L5: 677 | M5: 672 | N5: 692 | O5: 689 | P5: 706 | Q5: 704 | R5: 703 | S5: 711 | T5: 712
A6: Toronto | B6: 614 | C6: 613 | D6: 610 | E6: 624 | F6: 615 | G6: 647 | H6: 667 | I6: 656 | J6: 658 | K6: 680 | L6: 685 | M6: 681 | N6: 696 | O6: 699 | P6: 705 | Q6: 703 | R6: 704 | S6: 714 | T6: 707
A33: City | B33: GFCI 19 Rank | C33: GFCI 19 Rating | D33: GFCI 18 Rank | E33: GFCI 18 Rating | F33: Change in Rank | G33: Change in Rating
A34: New York | B34: 2 | C34: 792 | D34: 2 | E34: 788 | F34: - | G34: ▲4
A35: Washington DC | B35: 7 | C35: 712 | D35: 10 | E35: 711 | F35: ▲3 | G35: ▲1
A36: San Francisco | B36: 8 | C36: 711 | D36: 9 | E36: 712 | F36: ▲1 | G36: ▼1
A37: Boston | B37: 9 | C37: 709 | D37: 12 | E37: 709 | F37: ▲3 | G37: -
A38: Toronto | B38: 10 | C38: 707 | D38: 8 | E38: 714 | F38: ▼2 | G38: ▼7
A39: Chicago | B39: 11 | C39: 706 | D39: 11 | E39: 710 | F39: - | G39: ▼4
A40: Montreal | B40: 21 | C40: 686 | D40: 17 | E40: 703 | F40: ▼4 | G40: ▼17
A41: Vancouver | B41: 22 | C41: 684 | D41: 18 | E41: 702 | F41: ▼4 | G41: ▼18
A42: Calgary | B42: 28 | C42: 671 | D42: 39 | E42: 662 | F42: ▲11 | G42: ▲9
A43: Los Angeles | B43: 29 | C43: 670 | D43: 49 | E43: 650 | F43: ▲20 | G43: ▲20

Sheet Latin America & the Caribbean
A1: Centre | B1: GFCI 1 | C1: GFCI 2 | D1: GFCI 3 | E1: GFCI 4 | F1: GFCI 5 | G1: GFCI 6 | H1: GFCI 7 | I1: GFCI 8 | J1: GFCI 9 | K1: GFCI 10 | L1: GFCI 11 | M1: GFCI 12 | N1: GFCI 13 | O1: GFCI 14 | P1: GFCI 15 | Q1: GFCI 16 | R1: GFCI 17 | S1: GFCI 18 | T1: GFCI 19
A2: Sao Paulo | C2: 434 | D2: 451 | E2: 471 | F2: 440 | G2: 560 | H2: 590 | I2: 573 | J2: 574 | K2: 607 | L2: 612 | M2: 619 | N2: 644 | O2: 643 | P2: 667 | Q2: 666 | R2: 644 | S2: 672 | T2: 639
A3: Buenos Aires | G3: 507 | H3: 535 | I3: 528 | J3: 525 | K3: 579 | L3: 577 | M3: 578 | N3: 633 | O3: 628 | P3: 688 | Q3: 657
A4: Mexico City | G4: 541 | H4: 563 | I4: 563 | J4: 561 | K4: 609 | L4: 610 | M4: 602 | N4: 628 | O4: 584 | P4: 605 | Q4: 652 | R4: 623 | S4: 616 | T4: 626
A5: Rio de Janeiro | G5: 532 | H5: 566 | I5: 561 | J5: 563 | K5: 602 | L5: 608 | M5: 608 | N5: 639 | O5: 654 | P5: 653 | Q5: 650 | R5: 638 | S5: 666 | T5: 637
A6: British Virgin Islands | D6: 574 | E6: 584 | F6: 549 | G6: 584 | H6: 596 | I6: 582 | J6: 584 | K6: 611 | L6: 623 | M6: 624 | N6: 640 | O6: 626 | P6: 654 | Q6: 639 | R6: 657 | S6: 658 | T6: 635
A35: City | B35: GFCI 19 Rank | C35: GFCI 19 Rating | D35: GFCI 18 Rank | E35: GFCI 18 Rating | F35: Change in Rank | G35: Change in Rating
A36: Cayman Islands | B36: 41 | C36: 641 | D36: 34 | E36: 668 | F36: ▼7 | G36: ▼27
A37: Sao Paulo | B37: 43 | C37: 639 | D37: 31 | E37: 672 | F37: ▼12 | G37: ▼33
A38: Rio de Janeiro | B38: 44 | C38: 637 | D38: 35 | E38: 666 | F38: ▼9 | G38: ▼29
A39: British Virgin Islands | B39: 46 | C39: 635 | D39: 43 | E39: 658 | F39: ▼3 | G39: ▼23
A40: Bermuda | B40: 50 | C40: 629 | D40: 42 | E40: 659 | F40: ▼8 | G40: ▼30
A41: Mexico City | B41: 53 | C41: 626 | D41: 69 | E41: 616 | F41: ▲16 | G41: ▲10
A42: Panama | B42: 72 | C42: 603 | D42: 52 | E42: 638 | F42: ▼20 | G42: ▼35
A43: Bahamas | B43: 84 | C43: 568 | D43: 75 | E43: 606 | F43: ▼9 | G43: ▼38

Sheet Middle East & Africa
A1: Centre | B1: GFCI 1 | C1: GFCI 2 | D1: GFCI 3 | E1: GFCI 4 | F1: GFCI 5 | G1: GFCI 6 | H1: GFCI 7 | I1: GFCI 8 | J1: GFCI 9 | K1: GFCI 10 | L1: GFCI 11 | M1: GFCI 12 | N1: GFCI 13 | O1: GFCI 14 | P1: GFCI 15 | Q1: GFCI 16 | R1: GFCI 17 | S1: GFCI 18 | T1: GFCI 19
A2: Dubai | B2: 570 | C2: 575 | D2: 585 | E2: 597 | F2: 580 | G2: 617 | H2: 618 | I2: 607 | J2: 605 | K2: 622 | L2: 641 | M2: 648 | N2: 675 | O2: 671 | P2: 684 | Q2: 694 | R2: 688 | S2: 704 | T2: 699
A3: Abu Dhabi | L3: 618 | M3: 631 | N3: 649 | O3: 637 | P3: 678 | Q3: 692 | R3: 685 | S3: 679 | T3: 675
A4: Riyadh | G4: 457 | H4: 507 | I4: 503 | J4: 500 | K4: 575 | L4: 572 | M4: 584 | N4: 656 | O4: 627 | P4: 682 | Q4: 685 | R4: 698 | S4: 629 | T4: 606
A5: Doha | C5: 440 | D5: 491 | E5: 525 | F5: 507 | G5: 558 | H5: 600 | I5: 592 | J5: 597 | K5: 636 | L5: 630 | M5: 634 | N5: 661 | O5: 672 | P5: 687 | Q5: 684 | R5: 691 | S5: 695 | T5: 652
A6: Tel Aviv | O6: 653 | P6: 692 | Q6: 664 | R6: 684 | S6: 687 | T6: 676
A32: City | B32: GFCI 19 Rank | C32: GFCI 19 Rating | D32: GFCI 18 Rank | E32: GFCI 18 Rating | F32: Change in Rank | G32: Change in Rating
A33: Dubai | B33: 13 | C33: 699 | D33: 16 | E33: 704 | F33: ▲3 | G33: ▼5
A34: Tel Aviv | B34: 25 | C34: 676 | D34: 25 | E34: 687 | F34: - | G34: ▼11
A35: Abu Dhabi | B35: 26 | C35: 675 | D35: 28 | E35: 679 | F35: ▲2 | G35: ▼4
A36: Casablanca | B36: 33 | C36: 665 | D36: 44 | E36: 657 | F36: ▲11 | G36: ▲8
A37: Doha | B37: 35 | C37: 652 | D37: 22 | E37: 695 | F37: ▼13 | G37: ▼43
A38: Johannesburg | B38: 51 | C38: 628 | D38: 33 | E38: 669 | F38: ▼18 | G38: ▼41
A39: Bahrain | B39: 69 | C39: 609 | D39: 50 | E39: 647 | F39: ▼19 | G39: ▼38
A40: Riyadh | B40: 70 | C40: 606 | D40: 57 | E40: 629 | F40: ▼13 | G40: ▼23
A41: Mauritius | B41: 73 | C41: 601 | D41: 64 | E41: 622 | F41: ▼9 | G41: ▼21

Sheet Industry Sectors
A1: Sub Indices by Industry sector.
A3: Rank | B3: Investment | C3: Banking | D3: Government & Regulatory | E3: Insurance | F3: Professional Services
A4: Rank | B4: Investment | C4: Banking | D4: Government & Regulatory | E4: Insurance | F4: Professional Services
A5: 1 | B5: New York (+1) | C5: London (-) | D5: London (-) | E5: New York (-) | F5: London (-)
A6: 2 | B6: London (-1) | C6: New York (-) | D6: New York (-) | E6: London (-) | F6: New York (-)
A7: 3 | B7: Hong Kong (-) | C7: Hong Kong (-) | D7: Singapore (+1) | E7: Singapore (-) | F7: Singapore (-)
A8: 4 | B8: Singapore (-) | C8: Singapore (-) | D8: Hong Kong (-1) | E8: Hong Kong (+1) | F8: Hong Kong (-)
A9: 5 | B9: Tokyo (+1) | C9: Tokyo (-) | D9: Los Angeles (+39) | E9: Tokyo (+5) | F9: Washington DC (-)
A10: 5 | B10: Zurich (+4) | C10: Luxembourg (+11) | D10: Tokyo (-1) | E10: Los Angeles (+23) | F10: Tokyo (+3)
A11: 7 | B11: Toronto (-2) | C11: Los Angeles (+24) | D11: Washington DC (+6) | E11: Washington DC (+1) | F11: Shenzhen (+22)
A12: 8 | B12: Boston (+1) | C12: Casablanca (+15) | D12: Frankfurt (+3) | E12: Chicago (-2) | F12: San Francisco (-2)
A13: 9 | B13: San Francisco (-1) | C13: Washington DC (+3) | D13: Chicago (-2) | E13: Dalian (+26) | F13: Toronto (+2)
A14: 10 | B14: Sydney (+2) | C14: Zurich (-3) | D14: San Francisco (+3) | E14: Montreal (+10) | F14: Boston (-2)

Sheet Reputation
A1: A Comparison of the average assessment (weighted by age) with the GFCI rating.
A3: Centre - Top 10 | B3: Average Assessment | C3: GFCI 19 Rating | D3: Reputational Advantage
A4: Qingdao | B4: 689 | C4: 594 | D4: 95
A5: Casablanca | B5: 750 | C5: 665 | D5: 85
A6: Sydney | B6: 766 | C6: 692 | D6: 74
A7: Singapore | B7: 827 | C7: 755 | D7: 72
A8: Tokyo | B8: 794 | C8: 728 | D8: 66
A9: Melbourne | B9: 726 | C9: 669 | D9: 57
A10: Toronto | B10: 762 | C10: 707 | D10: 55
A11: Dalian | B11: 723 | C11: 668 | D11: 55
A12: Hong Kong | B12: 805 | C12: 753 | D12: 52
A13: Taipei | B13: 729 | C13: 677 | D13: 52
A15: Centre - Bottom 10 | B15: Average Assessment | C15: GFCI 19 Rating | D15: Reputational Advantage
A16: Helsinki | B16: 555 | C16: 619 | D16: -64
A17: Madrid | B17: 544 | C17: 615 | D17: -71
A18: Riyadh | B18: 531 | C18: 606 | D18: -75
A19: Glasgow | B19: 544 | C19: 620 | D19: -76
A20: Rome | B20: 537 | C20: 616 | D20: -79
A21: Tel Aviv | B21: 589 | C21: 676 | D21: -87
A22: St Petersburg | B22: 487 | C22: 585 | D22: -98
A23: Reykjavik | B23: 462 | C23: 562 | D23: -100
A24: Moscow | B24: 510 | C24: 611 | D24: -101
A25: Athens | B25: 454 | C25: 558 | D25: -104

Sheet Stability
A1: The 'Stability' of financial centres' GFCI ratings (top 40).
A3: Centre | B3: Standard Deviation of Assessments | C3: Variance of Instrumental Factors
A4: New York | B4: 4.56 | C4: 3.11
A5: London | B5: 2.45 | C5: 2.62
A6: Hong Kong | B6: 9.57 | C6: 2.22
A7: Singapore | B7: 8.85 | C7: 2.19
A8: Tokyo | B8: 5.98 | C8: 2.64
A9: Zurich | B9: 4.55 | C9: 3.28
A10: Seoul | B10: 22.88 | C10: 2.97
A11: San Francisco | B11: 5.29 | C11: 3.10
A12: Chicago | B12: 18.45 | C12: 2.54
A13: Boston | B13: 8.00 | C13: 2.35
A14: Toronto | B14: 12.97 | C14: 2.60
A15: Washington DC | B15: 12.24 | C15: 2.87
A16: Geneva | B16: 6.84 | C16: 3.16
A17: Riyadh | B17: 43.43 | C17: 5.09
A18: Vancouver | B18: 11.09 | C18: 3.68
A19: Shanghai | B19: 11.78 | C19: 2.68
A20: Luxembourg | B20: 5.46 | C20: 3.76
A21: Montreal | B21: 15.32 | C21: 3.94
A22: Frankfurt | B22: 14.44 | C22: 3.09
A23: Doha | B23: 24.56 | C23: 4.59
A24: Sydney | B24: 13.66 | C24: 2.16
A25: Shenzhen | B25: 20.43 | C25: 2.87
A26: Dubai | B26: 5.32 | C26: 3.66
A27: Busan | B27: 31.73 | C27: 4.25
A28: Taipei | B28: 3.71 | C28: 2.29
A29: Abu Dhabi | B29: 9.96 | C29: 4.17
A30: Tel Aviv | B30: 4.39 | C30: 6.70
A31: Melbourne | B31: 18.06 | C31: 2.63
A32: Beijing | B32: 13.18 | C32: 3.48
A33: Munich | B33: 9.46 | C33: 4.44
A34: Osaka | B34: 18.80 | C34: 3.19
A35: Johannesburg | B35: 4.24 | C35: 3.93
A36: Calgary | B36: 14.69 | C36: 3.40
A37: British Virgin Islands | B37: 15.31 | C37: 5.10
A38: Vienna | B38: 18.24 | C38: 5.01
A39: Stockholm | B39: 19.26 | C39: 4.43
A40: Paris | B40: 10.11 | C40: 3.44
A41: Kuala Lumpur | B41: 18.60 | C41: 2.88 | E41: Std Dev | F41: Var IF
A42: Cayman Islands | B42: 10.72 | C42: 4.58 | D42: Max | E42: =MAX(B4:B43) -> 43.4 | F42: =MAX(C4:C43) -> 6.7
A43: Amsterdam | B43: 8.87 | C43: 3.25 | D43: Min | E43: =MIN(B4:B43) -> 2.4 | F43: =MIN(C4:C43) -> 2.2
A44: Hamilton (Bermuda) | B44: 12.86 | C44: 4.01
A45: Casablanca | B45: 17.57 | C45: 4.43
A46: Sao Paulo | B46: 14.52 | C46: 2.90
A47: Istanbul | B47: 14.96 | C47: 4.04
A48: Gibraltar | B48: 12.70 | C48: 4.45
A49: Manama (Bahrain) | B49: 12.15 | C49: 4.04
A50: Rio de Janeiro | B50: 12.92 | C50: 3.83
A51: Panama | B51: 13.92 | C51: 3.99
A52: Almaty | B52: 28.86 | C52: 6.06
A53: Bangkok | B53: 15.64 | C53: 3.23
A54: Dalian | B54: 14.86 | C54: 3.08
A55: Dublin | B55: 3.35 | C55: 3.54
A56: Mumbai | B56: 11.56 | C56: 4.05
A57: Jersey | B57: 4.72 | C57: 5.03
A58: Guernsey | B58: 7.73 | C58: 4.98
A59: Mexico City | B59: 12.70 | C59: 4.00
A60: Jakarta | B60: 11.12 | C60: 4.06
A61: Isle of Man | B61: 6.91 | C61: 4.79
A62: Monaco | B62: 14.54 | C62: 4.32
A63: Prague | B63: 5.54 | C63: 4.54
A64: Copenhagen | B64: 17.85 | C64: 4.10
A65: Manila | B65: 21.72 | C65: 3.72
A66: Brussels | B66: 15.94 | C66: 3.63
A67: Warsaw | B67: 9.28 | C67: 3.64
A68: Oslo | B68: 16.70 | C68: 5.26
A69: Glasgow | B69: 35.40 | C69: 4.16
A70: Edinburgh | B70: 29.31 | C70: 3.63
A71: Port Louis | B71: 13.48 | C71: 4.38
A72: Bahamas | B72: 12.88 | C72: 4.60
A73: Milan | B73: 11.92 | C73: 3.97
A74: Valletta (Malta) | B74: 22.93 | C74: 4.90
A75: Rome | B75: 14.23 | C75: 4.75
A76: Madrid | B76: 25.74 | C76: 5.35
A77: Helsinki | B77: 28.95 | C77: 4.45
A78: Moscow | B78: 11.63 | C78: 5.79
A79: Budapest | B79: 15.98 | C79: 5.02
A80: Lisbon | B80: 23.45 | C80: 5.92
A81: St Petersburg | B81: 13.31 | C81: 6.34
A82: Nicosia (Cyprus) | B82: 20.86 | C82: 4.95
A83: Tallinn | B83: 24.84 | C83: 3.63
A84: Athens | B84: 19.60 | C84: 4.14
A85: Reykjavik | B85: 28.21 | C85: 4.60
A86: Liechtenstein | B86: 14.45 | C86: 6.19
A87: Los Angeles | B87: 14.75 | C87: 2.86
A88: Riga | B88: 18.99 | C88: 3.77
A89: Qingdao | B89: 23.26 | C89: 1.76

Sheet Assessments
A1: Valid assessments obtained in the past 24 months.
A3: Centre | B3: GFCI 19 Rank | C3: GFCI 19 Rating | D3: Number | E3: Average | F3: Standard Deviation
A4: London | B4: 1 | C4: 800 | D4: 1166 | E4: 839 | F4: 169
A5: New York | B5: 2 | C5: 792 | D5: 1035 | E5: 835 | F5: 182
A6: Singapore | B6: 3 | C6: 755 | D6: 673 | E6: 827 | F6: 143
A7: Hong Kong | B7: 4 | C7: 753 | D7: 815 | E7: 805 | F7: 143
A8: Tokyo | B8: 5 | C8: 728 | D8: 450 | E8: 794 | F8: 163
A9: Zurich | B9: 6 | C9: 714 | D9: 586 | E9: 741 | F9: 210
A10: Washington DC | B10: 7 | C10: 712 | D10: 325 | E10: 742 | F10: 179
A11: San Francisco | B11: 8 | C11: 711 | D11: 264 | E11: 756 | F11: 148
A12: Boston | B12: 9 | C12: 709 | D12: 392 | E12: 752 | F12: 158
A13: Toronto | B13: 10 | C13: 707 | D13: 319 | E13: 762 | F13: 165
A14: Chicago | B14: 11 | C14: 706 | D14: 344 | E14: 751 | F14: 156
A15: Seoul | B15: 12 | C15: 705 | D15: 229 | E15: 735 | F15: 171
A16: Dubai | B16: 13 | C16: 699 | D16: 543 | E16: 713 | F16: 195
A17: Luxembourg | B17: 14 | C17: 698 | D17: 485 | E17: 730 | F17: 222
A18: Geneva | B18: 15 | C18: 694 | D18: 559 | E18: 695 | F18: 194
A19: Shanghai | B19: 16 | C19: 693 | D19: 441 | E19: 726 | F19: 166
A20: Sydney | B20: 17 | C20: 692 | D20: 276 | E20: 766 | F20: 144
A21: Frankfurt | B21: 18 | C21: 689 | D21: 558 | E21: 714 | F21: 187
A22: Shenzhen | B22: 19 | C22: 688 | D22: 253 | E22: 712 | F22: 159
A23: Osaka | B23: 20 | C23: 687 | D23: 125 | E23: 738 | F23: 177
A24: Montreal | B24: 21 | C24: 686 | D24: 210 | E24: 700 | F24: 218
A25: Vancouver | B25: 22 | C25: 684 | D25: 170 | E25: 717 | F25: 225
A26: Beijing | B26: 23 | C26: 682 | D26: 413 | E26: 671 | F26: 202
A27: Taipei | B27: 24 | C27: 677 | D27: 196 | E27: 729 | F27: 166
A28: Tel Aviv | B28: 25 | C28: 676 | D28: 105 | E28: 589 | F28: 274
A29: Abu Dhabi | B29: 26 | C29: 675 | D29: 371 | E29: 662 | F29: 199
A30: Munich | B30: 27 | C30: 672 | D30: 207 | E30: 629 | F30: 217
A31: Calgary | B31: 28 | C31: 671 | D31: 127 | E31: 665 | F31: 210
A32: Los Angeles | B32: 29 | C32: 670 | D32: 283 | E32: 716 | F32: 196
A33: Melbourne | B33: 30 | C33: 669 | D33: 141 | E33: 726 | F33: 158
A34: Dalian | B34: 31 | C34: 668 | D34: 267 | E34: 723 | F34: 187
A35: Paris | B35: 32 | C35: 667 | D35: 687 | E35: 652 | F35: 204
A36: Casablanca | B36: 33 | C36: 665 | D36: 214 | E36: 750 | F36: 185
A37: Amsterdam | B37: 34 | C37: 664 | D37: 532 | E37: 660 | F37: 200
A38: Doha | B38: 35 | C38: 652 | D38: 189 | E38: 621 | F38: 229
A39: Kuala Lumpur | B39: 36 | C39: 649 | D39: 206 | E39: 656 | F39: 185
A40: Stockholm | B40: 37 | C40: 648 | D40: 190 | E40: 622 | F40: 236
A41: Busan | B41: 38 | C41: 644 | D41: 88 | E41: 623 | F41: 245
A42: Dublin | B42: 39 | C42: 643 | D42: 492 | E42: 639 | F42: 193
A43: Vienna | B43: 40 | C43: 642 | D43: 193 | E43: 622 | F43: 253
A44: Cayman Islands | B44: 41 | C44: 641 | D44: 310 | E44: 640 | F44: 216
A45: Mumbai | B45: 42 | C45: 640 | D45: 167 | E45: 586 | F45: 198
A46: Sao Paulo | B46: 43 | C46: 639 | D46: 131 | E46: 689 | F46: 157
A47: Rio de Janeiro | B47: 44 | C47: 637 | D47: 96 | E47: 579 | F47: 231
A48: Istanbul | B48: 45 | C48: 636 | D48: 211 | E48: 594 | F48: 204
A49: British Virgin Islands | B49: 46 | C49: 635 | D49: 294 | E49: 601 | F49: 235
A50: Bangkok | B50: 47 | C50: 633 | D50: 202 | E50: 603 | F50: 196
A51: Warsaw | B51: 48 | C51: 631 | D51: 219 | E51: 646 | F51: 236
A52: Copenhagen | B52: 49 | C52: 630 | D52: 230 | E52: 594 | F52: 231
A53: Bermuda | B53: 50 | C53: 629 | D53: 145 | E53: 616 | F53: 241
A54: Johannesburg | B54: 51 | C54: 628 | D54: 177 | E54: 612 | F54: 193
A55: Brussels | B55: 52 | C55: 627 | D55: 466 | E55: 610 | F55: 209
A56: Mexico City | B56: 53 | C56: 626 | D56: 136 | E56: 606 | F56: 205
A57: Milan | B57: 54 | C57: 625 | D57: 246 | E57: 592 | F57: 213
A58: Manila | B58: 55 | C58: 624 | D58: 103 | E58: 601 | F58: 218
A59: Edinburgh | B59: 56 | C59: 623 | D59: 286 | E59: 606 | F59: 214
A60: Prague | B60: 57 | C60: 622 | D60: 161 | E60: 591 | F60: 258
A61: Jakarta | B61: 58 | C61: 621 | D61: 135 | E61: 601 | F61: 244
A62: Glasgow | B62: 59 | C62: 620 | D62: 200 | E62: 544 | F62: 212
A63: Helsinki | B63: 60 | C63: 619 | D63: 181 | E63: 555 | F63: 241
A64: Gibraltar | B64: 61 | C64: 618 | D64: 190 | E64: 567 | F64: 208
A65: Jersey | B65: 62 | C65: 617 | D65: 304 | E65: 620 | F65: 224
A66: Rome | B66: 63 | C66: 616 | D66: 217 | E66: 537 | F66: 235
A67: Madrid | B67: 64 | C67: 615 | D67: 254 | E67: 544 | F67: 247
A68: Oslo | B68: 65 | C68: 614 | D68: 166 | E68: 595 | F68: 274
A69: Guernsey | B69: 66 | C69: 613 | D69: 295 | E69: 599 | F69: 223
A70: Moscow | B70: 67 | C70: 611 | D70: 367 | E70: 510 | F70: 238
A71: Isle of Man | B71: 68 | C71: 610 | D71: 281 | E71: 587 | F71: 238
A72: Bahrain | B72: 69 | C72: 609 | D72: 192 | E72: 607 | F72: 214
A73: Riyadh | B73: 70 | C73: 606 | D73: 117 | E73: 531 | F73: 241
A74: Riga | B74: 71 | C74: 605 | D74: 209 | E74: 644 | F74: 245
A75: Panama | B75: 72 | C75: 603 | D75: 128 | E75: 593 | F75: 229
A76: Mauritius | B76: 73 | C76: 601 | D76: 158 | E76: 568 | F76: 210
A77: Budapest | B77: 74 | C77: 600 | D77: 133 | E77: 557 | F77: 252
A78: Lisbon | B78: 75 | C78: 599 | D78: 174 | E78: 544 | F78: 279
A79: Liechtenstein | B79: 76 | C79: 598 | D79: 211 | E79: 572 | F79: 260
A80: Almaty | B80: 77 | C80: 597 | D80: 137 | E80: 610 | F80: 254
A81: Tallinn | B81: 78 | C81: 596 | D81: 163 | E81: 605 | F81: 238
A82: Qingdao | B82: 79 | C82: 594 | D82: 222 | E82: 689 | F82: 0
A83: Monaco | B83: 80 | C83: 590 | D83: 254 | E83: 576 | F83: 228
A84: Malta | B84: 81 | C84: 587 | D84: 222 | E84: 552 | F84: 223
A85: St Petersburg | B85: 82 | C85: 585 | D85: 132 | E85: 487 | F85: 260
A86: Cyprus | B86: 83 | C86: 576 | D86: 268 | E86: 534 | F86: 218
A87: Bahamas | B87: 84 | C87: 568 | D87: 200 | E87: 538 | F87: 238
A88: Reykjavik | B88: 85 | C88: 562 | D88: 116 | E88: 462 | F88: 202
A89: Athens | B89: 86 | C89: 558 | D89: 170 | E89: 454 | F89: 175
A90: Total | B90: - | C90: - | D90: 24,495 | E90: - | F90: -

Sheet Respondents
A1: A breakdown of the respondents by region, sector and size of organisation
A3: Region | B3: Number
A4: Western Europe | B4: 816
A5: Asia/Pacific | B5: 529
A6: North America | B6: 255
A7: Middle East & Africa | B7: 136
A8: N/A | B8: 63
A9: Eastern Europe & Central Asia | B9: 63
A10: Latin America & the Caribbean | B10: 48
A11: Total | B11: 1910
A14: Sector | B14: Number
A15: Banking | B15: 572
A16: Finance | B16: 111
A17: Government & Regulatory | B17: 101
A18: Insurance | B18: 92
A19: Investment | B19: 301
A20: Professional Services | B20: 368
A21: Trade Association | B21: 57
A22: Trading | B22: 69
A23: Other | B23: 239
A24: Total | B24: 1910
A27: Size of Organisation | B27: Number
A28: Fewer than 100 | B28: 478
A29: 100 to 500 | B29: 260
A30: 500 to 1,000 | B30: 171
A31: 1,000 to 2,000 | B31: 116
A32: 2,000 to 5,000 | B32: 208
A33: More than 5,000 | B33: 677
A34: Total | B34: 1910

Sheet Inst Factors
A1: Details of the Instrumental Factors used in the GFCI
A3: Instrumental Factors | B3: R-Sq | D3: Business Environment | G3: Updated since GFCI 18
A4: IF01 Office Occupancy Costs | B4: =HLOOKUP(A4,'[1]R-Sq'!$E$1:$DB$108,108,FALSE) -> 0.5034 | D4: Factor | E4: Source | F4: Website
A5: BE16 OECD Country Risk Classification | B5: =HLOOKUP(A5,'[1]R-Sq'!$E$1:$DB$108,108,FALSE) -> 0.4966 | D5: BE01 Business Environment Rankings | E5: EIU | F5: http://www.eiu.com/public/thankyou_download.aspx?activity=download&campaignid=bizenviro2014
A6: RF11 Price Levels | B6: =HLOOKUP(A6,'[1]R-Sq'!$E$1:$DB$108,108,FALSE) -> 0.4934 | D6: BE02 Ease of Doing Business Index | E6: The World Bank | F6: http://databank.worldbank.org/data/reports.aspx?source=doing-business | G6: YES
A7: RF14 Innovation Cities Global Index | B7: =HLOOKUP(A7,'[1]R-Sq'!$E$1:$DB$108,108,FALSE) -> 0.4010 | D7: BE03 Operational Risk Rating | E7: EIU | F7: http://www.viewswire.com/index.asp?layout=homePubTypeRK | G7: YES
A8: RF12 Global Cities Index | B8: =HLOOKUP(A8,'[1]R-Sq'!$E$1:$DB$108,108,FALSE) -> 0.4008 | D8: BE04 Real Interest Rate | E8: The World Bank | F8: http://databank.worldbank.org/data/reports.aspx?source=world-development-indicators | G8: YES
A9: RF01 World Competitiveness Scoreboard | B9: =HLOOKUP(A9,'[1]R-Sq'!$E$1:$DB$108,108,FALSE) -> 0.3971 | D9: BE05 Global Services Location | E9: AT Kearney | F9: http://www.atkearney.com/research-studies/global-services-location-index | G9: YES
A10: BE18 Financial Secrecy Index | B10: =HLOOKUP(A10,'[1]R-Sq'!$E$1:$DB$108,108,FALSE) -> 0.3795 | D10: BE06 Corruption Perception Index | E10: Transparency International | F10: http://www.transparency.org/policy_research/surveys_indices/cpi | G10: YES
A11: IF17 Logistics Performance Index | B11: =HLOOKUP(A11,'[1]R-Sq'!$E$1:$DB$108,108,FALSE) -> 0.3766 | D11: BE07 Wage Comparison Index | E11: UBS | F11: http://www.ubs.com/1/e/wealthmanagement/wealth_management_research/prices_earnings.html | G11: YES
A12: RF02 Global Competitiveness Index | B12: =HLOOKUP(A12,'[1]R-Sq'!$E$1:$DB$108,108,FALSE) -> 0.3520 | D12: BE08 Corporate Tax Rates | E12: PWC | F12: http://www.doingbusiness.org/reports/thematic-reports/paying-taxes/ | G12: YES
A13: RF22 IESE cities in motion index | B13: =HLOOKUP(A13,'[1]R-Sq'!$E$1:$DB$108,108,FALSE) -> 0.3289 | D13: BE09 Employee Tax Rates | E13: PWC | F13: n/a
A14: HC17 Cost of Living City Rankings | B14: =HLOOKUP(A14,'[1]R-Sq'!$E$1:$DB$108,108,FALSE) -> 0.3230 | D14: BE10 Personal Tax Rates | E14: OECD | F14: http://www.oecd.org/tax/tax-policy/tax-database.htm
A15: BE01 Business Environment Rankings | B15: =HLOOKUP(A15,'[1]R-Sq'!$E$1:$DB$108,108,FALSE) -> 0.3180 | D15: BE11 Tax as Percentage of GDP | E15: The World Bank | F15: http://databank.worldbank.org/data/reports.aspx?source=world-development-indicators | G15: YES
A16: IF02 Office Space Around the World | B16: =HLOOKUP(A16,'[1]R-Sq'!$E$1:$DB$108,108,FALSE) -> 0.3111 | D16: BE12 Bilateral Tax Information Exchange Agreements | E16: OECD | F16: http://www.oecd.org/document/7/0,3343,en_2649_33767_38312839_1_1_1_1,00.html
A17: RF17 Global Enabling Trade Report | B17: =HLOOKUP(A17,'[1]R-Sq'!$E$1:$DB$108,108,FALSE) -> 0.3085 | D17: BE13 Economic Freedom of the World | E17: Fraser Institute | F17: http://www.freetheworld.com/release.html | G17: YES
A18: BE14 Banking Industry Country Risk Assessments | B18: =HLOOKUP(A18,'[1]R-Sq'!$E$1:$DB$108,108,FALSE) -> 0.3005 | D18: BE14 Banking Industry Country Risk Assessments | E18: Standard & Poors | F18: http://img.en25.com/Web/StandardPoorsRatings/BICRA_Update_10_10_13.pdf
A19: RF21 City Initiatives for Technology, Innovation and Entrepreneurship | B19: =HLOOKUP(A19,'[1]R-Sq'!$E$1:$DB$108,108,FALSE) -> 0.2877 | D19: BE15 Government Debt as % of GDP | E19: CIA | F19: https://www.cia.gov/library/publications/the-world-factbook/rankorder/2186rank.html
A20: HC08 Top Tourism Destinations | B20: =HLOOKUP(A20,'[1]R-Sq'!$E$1:$DB$108,108,FALSE) -> 0.2524 | D20: BE16 OECD Country Risk Classification | E20: OECD | F20: http://www.oecd.org/tad/xcred/crc.htm | G20: NEW
A21: BE20 City GDP Figures | B21: =HLOOKUP(A21,'[1]R-Sq'!$E$1:$DB$108,108,FALSE) -> 0.2459 | D21: BE17 Global Peace Index | E21: Institute for Economics & Peace | F21: http://www.visionofhumanity.org/
A22: IF08 Quality of Roads | B22: =HLOOKUP(A22,'[1]R-Sq'!$E$1:$DB$108,108,FALSE) -> 0.2447 | D22: BE18 Financial Secrecy Index | E22: Tax Justice Network | F22: http://www.financialsecrecyindex.com/ | G22: YES
A23: RF05 FDI Confidence Index | B23: =HLOOKUP(A23,'[1]R-Sq'!$E$1:$DB$108,108,FALSE) -> 0.2402 | D23: BE19 Government Effectiveness | E23: The World Bank | F23: http://info.worldbank.org/governance/wgi/index.aspx#home | G23: NEW
A24: IF13 Metro Network Length | B24: =HLOOKUP(A24,'[1]R-Sq'!$E$1:$DB$108,108,FALSE) -> 0.2383 | D24: BE20 City GDP Figures | E24: The Brookings Institution | F24: http://www.brookings.edu/research/interactives/global-metro-monitor-3
A25: RF13 Number of international association meetings | B25: =HLOOKUP(A25,'[1]R-Sq'!$E$1:$DB$108,108,FALSE) -> 0.2343 | D25: BE21 Open Government | E25: World Justice Project | F25: http://worldjusticeproject.org/sites/default/files/files/wjp_rule_of_law_index_2014_report.pdf
A26: HC11 Global Talent Index | B26: =HLOOKUP(A26,'[1]R-Sq'!$E$1:$DB$108,108,FALSE) -> 0.2317 | D26: BE22 Regulatory Enforcement | E26: World Justice Project | F26: http://worldjusticeproject.org/sites/default/files/files/wjp_rule_of_law_index_2014_report.pdf
A27: HC05 Citizens Domestic Purchasing Power | B27: =HLOOKUP(A27,'[1]R-Sq'!$E$1:$DB$108,108,FALSE) -> 0.2306 | D27: BE23 Press Freedom Index | E27: Reporters Without Borders (RSF) | F27: http://en.rsf.org/
A28: IF03 IPD Global Property Index | B28: =HLOOKUP(A28,'[1]R-Sq'!$E$1:$DB$108,108,FALSE) -> 0.2302 | D28: BE24 Currencies | E28: Swiss Association for Standardization (SNV) | F28: http://www.currency-iso.org/en/home/tables/table-a1.html | G28: YES
A29: IF11 Networked Readiness Index | B29: =HLOOKUP(A29,'[1]R-Sq'!$E$1:$DB$108,108,FALSE) -> 0.2301 | D29: BE25 Commonwealth Countries | E29: The Commonwealth | F29: http://thecommonwealth.org/member-countries
A30: RF04 Foreign Direct Investment Inflows | B30: =HLOOKUP(A30,'[1]R-Sq'!$E$1:$DB$108,108,FALSE) -> 0.2251 | D30: BE26 Common Law Countries | E30: CIA | F30: https://www.cia.gov/library/publications/the-world-factbook/fields/2100.html
A31: IF07 Quality of Domestic Transport Network | B31: =HLOOKUP(A31,'[1]R-Sq'!$E$1:$DB$108,108,FALSE) -> 0.2245 | D31: BE27 Inflation, GDP Deflator | E31: The World Bank | F31: http://data.worldbank.org/indicator/NY.GDP.DEFL.KD.ZG | G31: NEW
A32: BE07 Wage Comparison Index | B32: =HLOOKUP(A32,'[1]R-Sq'!$E$1:$DB$108,108,FALSE) -> 0.2239 | D32: BE28 Rule of Law | E32: The World Bank | F32: http://info.worldbank.org/governance/wgi/index.aspx#home | G32: NEW
A33: FS08 Total Net Assets of Mutual Funds | B33: =HLOOKUP(A33,'[1]R-Sq'!$E$1:$DB$108,108,FALSE) -> 0.2228
A34: FS01 Capitalisation of Stock Exchanges | B34: =HLOOKUP(A34,'[1]R-Sq'!$E$1:$DB$108,108,FALSE) -> 0.2218 | D34: Financial Sector Development | G34: Updated since GFCI 18
A35: FS12 Liner Shipping Connectivity Index | B35: =HLOOKUP(A35,'[1]R-Sq'!$E$1:$DB$108,108,FALSE) -> 0.2207 | D35: Factor | E35: Source | F35: Website
A36: BE19 Government Effectiveness | B36: =HLOOKUP(A36,'[1]R-Sq'!$E$1:$DB$108,108,FALSE) -> 0.2160 | D36: FS01 Capitalisation of Stock Exchanges | E36: The World Federation of Stock Exchanges | F36: http://www.world-exchanges.org/home/index.php/statistics/monthly-reports | G36: YES
A37: HC10 Quality of Living City Rankings | B37: =HLOOKUP(A37,'[1]R-Sq'!$E$1:$DB$108,108,FALSE) -> 0.2026 | D37: FS02 Value of Share Trading | E37: The World Federation of Stock Exchanges | F37: http://www.world-exchanges.org/home/index.php/statistics/monthly-reports | G37: YES
A38: RF08 Global Innovation Index | B38: =HLOOKUP(A38,'[1]R-Sq'!$E$1:$DB$108,108,FALSE) -> 0.2011 | D38: FS03 Volume of Share Trading | E38: The World Federation of Stock Exchanges | F38: http://www.world-exchanges.org/home/index.php/statistics/monthly-reports | G38: YES
A39: FS02 Value of Share Trading | B39: =HLOOKUP(A39,'[1]R-Sq'!$E$1:$DB$108,108,FALSE) -> 0.1935 | D39: FS04 Broad Stock Index Levels | E39: The World Federation of Stock Exchanges | F39: http://www.world-exchanges.org/home/index.php/statistics/monthly-reports | G39: YES
A40: RF07 GDP per Person Employed | B40: =HLOOKUP(A40,'[1]R-Sq'!$E$1:$DB$108,108,FALSE) -> 0.1803 | D40: FS05 Value of Bond Trading | E40: The World Federation of Stock Exchanges | F40: http://www.world-exchanges.org/home/index.php/statistics/monthly-reports | G40: YES
A41: BE22 Regulatory Enforcement | B41: =HLOOKUP(A41,'[1]R-Sq'!$E$1:$DB$108,108,FALSE) -> 0.1798 | D41: FS06 Domestic Credit Provided by Banking Sector (% of GDP) | E41: The World Bank | F41: http://databank.worldbank.org/data/reports.aspx?source=world-development-indicators | G41: YES
A42: HC06 Number of High Net Worth Individuals | B42: =HLOOKUP(A42,'[1]R-Sq'!$E$1:$DB$108,108,FALSE) -> 0.1781 | D42: FS07 Percentage of Firms Using Banks to Finance Investment | E42: The World Bank | F42: http://databank.worldbank.org/data/reports.aspx?source=world-development-indicators | G42: YES
A43: RF20 Legatum Prosperity Index | B43: =HLOOKUP(A43,'[1]R-Sq'!$E$1:$DB$108,108,FALSE) -> 0.1776 | D43: FS08 Total Net Assets of Mutual Funds | E43: Investment Company Institute | F43: http://www.icifactbook.org/
A44: HC16 World Talent Rankings | B44: =HLOOKUP(A44,'[1]R-Sq'!$E$1:$DB$108,108,FALSE) -> 0.1767 | D44: FS09 Islamic Finance Country Index | E44: Islamic Banks and Financial Institutions | F44: http://www.gifr.net/publications/gifr2015/ifci.pdf | G44: NEW
A45: FS10 Net External Positions of Banks | B45: =HLOOKUP(A45,'[1]R-Sq'!$E$1:$DB$108,108,FALSE) -> 0.1719 | D45: FS10 Net External Positions of Banks | E45: The Bank for International Settlements | F45: http://www.bis.org/statistics/bankstats.htm | G45: YES
A46: FS03 Volume of Share Trading | B46: =HLOOKUP(A46,'[1]R-Sq'!$E$1:$DB$108,108,FALSE) -> 0.1610 | D46: FS11 External Positions of Central Banks as a share of GDP | E46: The Bank for International Settlements | F46: http://www.bis.org/statistics/bankstats.htm | G46: YES
A47: IF04 JLL Real Estate Transparency Index | B47: =HLOOKUP(A47,'[1]R-Sq'!$E$1:$DB$108,108,FALSE) -> 0.1581 | D47: FS12 Liner Shipping Connectivity Index | E47: The World Bank | F47: http://databank.worldbank.org/data/reports.aspx?source=world-development-indicators | G47: YES
A48: BE02 Ease of Doing Business Index | B48: =HLOOKUP(A48,'[1]R-Sq'!$E$1:$DB$108,108,FALSE) -> 0.1564 | D48: FS13 Global Connectedness Index | E48: DHL | F48: http://www.dhl.com/en/about_us/logistics_insights/studies_research/global_connectedness_index/global_connectedness_index.html
A49: BE28 Rule of Law | B49: =HLOOKUP(A49,'[1]R-Sq'!$E$1:$DB$108,108,FALSE) -> 0.1538 | D49: FS14 City GDP composition (Business/Finance) | E49: The Brookings Institution | F49: http://www.brookings.edu/research/interactives/global-metro-monitor-3
A50: FS06 Domestic Credit Provided by Banking Sector (% of GDP) | B50: =HLOOKUP(A50,'[1]R-Sq'!$E$1:$DB$108,108,FALSE) -> 0.1491
A51: BE08 Corporate Tax Rates | B51: =HLOOKUP(A51,'[1]R-Sq'!$E$1:$DB$108,108,FALSE) -> 0.1470 | D51: Infrastructure
A52: BE03 Operational Risk Rating | B52: =HLOOKUP(A52,'[1]R-Sq'!$E$1:$DB$108,108,FALSE) -> 0.1467 | D52: Factor | E52: Source | F52: Website
A53: RF09 Global Intellectual Property Index | B53: =HLOOKUP(A53,'[1]R-Sq'!$E$1:$DB$108,108,FALSE) -> 0.1414 | D53: IF01 Office Occupancy Costs | E53: Cushman & Wakefield (merged with DTZ) | F53: http://occupiermetrics.com/
A54: BE13 Economic Freedom of the World | B54: =HLOOKUP(A54,'[1]R-Sq'!$E$1:$DB$108,108,FALSE) -> 0.1340 | D54: IF02 Office Space Around the World | E54: Cushman & Wakefield | F54: http://www.cushmanwakefield.com/en/research-and-insight/2014/office-space-across-the-world-2014/
A55: BE06 Corruption Perception Index | B55: =HLOOKUP(A55,'[1]R-Sq'!$E$1:$DB$108,108,FALSE) -> 0.1307 | D55: IF03 IPD Global Property Index | E55: Investment Property Databank | F55: http://www1.ipd.com/Pages/DNNPage.aspx?DestUrl=http%3a%2f%2fwww.ipd.com%2fsharepoint.aspx%3fTabId%3d425 | G55: YES
A56: BE24 Currencies | B56: =HLOOKUP(A56,'[1]R-Sq'!$E$1:$DB$108,108,FALSE) -> 0.1082 | D56: IF04 JLL Real Estate Transparency Index | E56: Jones Lang LaSalle | F56: http://www.jll.com/greti/Pages/Rankings.aspx
A57: BE11 Tax as Percentage of GDP | B57: =HLOOKUP(A57,'[1]R-Sq'!$E$1:$DB$108,108,FALSE) -> 0.1049 | D57: IF05 ICT Development Index | E57: United Nations | F57: http://www.itu.int/net4/ITU-D/idi/2015/# | G57: YES
A58: IF12 Energy Sustainability Index | B58: =HLOOKUP(A58,'[1]R-Sq'!$E$1:$DB$108,108,FALSE) -> 0.0939 | D58: IF06 Telecommunication Infrastructure Index | E58: United Nations | F58: http://unpan3.un.org/egovkb/Data-Center
A59: FS07 Percentage of Firms Using Banks to Finance Investment | B59: =HLOOKUP(A59,'[1]R-Sq'!$E$1:$DB$108,108,FALSE) -> 0.0912 | D59: IF07 Quality of Domestic Transport Network | E59: World Economic Forum | F59: http://reports.weforum.org/travel-and-tourism-competitiveness-report-2015/
A60: HC18 Health Outcomes and Cost | B60: =HLOOKUP(A60,'[1]R-Sq'!$E$1:$DB$108,108,FALSE) -> 0.0872 | D60: IF08 Quality of Roads | E60: World Economic Forum | F60: http://reports.weforum.org/travel-and-tourism-competitiveness-report-2015/
A61: BE26 Common Law Countries | B61: =HLOOKUP(A61,'[1]R-Sq'!$E$1:$DB$108,108,FALSE) -> 0.0872 | D61: IF09 Roadways per Land Area | E61: CIA | F61: https://www.cia.gov/library/publications/the-world-factbook/rankorder/2085rank.html
A62: RF16 Sustainable Economic Development | B62: =HLOOKUP(A62,'[1]R-Sq'!$E$1:$DB$108,108,FALSE) -> 0.0844 | D62: IF10 Railways per Land Area | E62: CIA | F62: https://www.cia.gov/library/publications/the-world-factbook/rankorder/2121rank.html
A63: FS13 Global Connectedness Index | B63: =HLOOKUP(A63,'[1]R-Sq'!$E$1:$DB$108,108,FALSE) -> 0.0780 | D63: IF11 Networked Readiness Index | E63: World Economic Forum | F63: http://reports.weforum.org/global-information-technology-report-2015/network-readiness-index/
A64: HC04 Human Development Index | B64: =HLOOKUP(A64,'[1]R-Sq'!$E$1:$DB$108,108,FALSE) -> 0.0758 | D64: IF12 Energy Sustainability Index | E64: World Energy Council | F64: http://www.worldenergy.org/data/sustainability-index/ | G64: YES
A65: BE21 Open Government | B65: =HLOOKUP(A65,'[1]R-Sq'!$E$1:$DB$108,108,FALSE) -> 0.0658 | D65: IF13 Metro Network Length | E65: Metro Bits | F65: http://mic-ro.com/metro/table.html
A66: BE04 Real Interest Rate | B66: =HLOOKUP(A66,'[1]R-Sq'!$E$1:$DB$108,108,FALSE) -> 0.0635 | D66: IF14 The Web Index | E66: The World Wide Web Foundation | F66: http://thewebindex.org/about/the-web-index/
A67: IF14 The Web Index | B67: =HLOOKUP(A67,'[1]R-Sq'!$E$1:$DB$108,108,FALSE) -> 0.0628 | D67: IF15 Environmental Performance | E67: Yale University | F67: http://epi.yale.edu//epi/country-rankings
A68: IF05 ICT Development Index | B68: =HLOOKUP(A68,'[1]R-Sq'!$E$1:$DB$108,108,FALSE) -> 0.0546 | D68: IF16 Global Sustainable Competitiveness Index | E68: Solability | F68: http://solability.com/the-global-sustainable-competitiveness-index/the-index | G68: YES
A69: FS09 Islamic Finance Country Index | B69: =HLOOKUP(A69,'[1]R-Sq'!$E$1:$DB$108,108,FALSE) -> 0.0483 | D69: IF17 Logistics Performance Index | E69: The World Bank | F69: http://lpi.worldbank.org/international/global | G69: NEW
A70: IF15 Environmental Performance | B70: =HLOOKUP(A70,'[1]R-Sq'!$E$1:$DB$108,108,FALSE) -> 0.0459
A71: FS14 City GDP composition (Business/Finance) | B71: =HLOOKUP(A71,'[1]R-Sq'!$E$1:$DB$108,108,FALSE) -> 0.0416 | D71: Human Capital | G71: Updated since GFCI 18
A72: BE10 Personal Tax Rates | B72: =HLOOKUP(A72,'[1]R-Sq'!$E$1:$DB$108,108,FALSE) -> 0.0397 | D72: Factor | E72: Source | F72: Website
A73: FS11 External Positions of Central Banks as a share of GDP | B73: =HLOOKUP(A73,'[1]R-Sq'!$E$1:$DB$108,108,FALSE) -> 0.0392 | D73: HC01 Graduates in social Science, Business and Law (as % of total graduates) | E73: The World Bank | F73: http://databank.worldbank.org/data/reports.aspx?source=Education%20Statistics | G73: YES
A74: IF06 Telecommunication Infrastructure Index | B74: =HLOOKUP(A74,'[1]R-Sq'!$E$1:$DB$108,108,FALSE) -> 0.0274 | D74: HC02 Gross Tertiary Graduation Ratio | E74: The World Bank | F74: http://databank.worldbank.org/data/reports.aspx?source=Education%20Statistics | G74: YES
A75: HC07 Homicide Rates | B75: =HLOOKUP(A75,'[1]R-Sq'!$E$1:$DB$108,108,FALSE) -> 0.0234 | D75: HC03 Visa Restrictions Index | E75: Henley Partners | F75: http://www.henleyglobal.com/citizenship/visa-restrictions/ | G75: YES
A76: RF19 City Prosperity Index | B76: =HLOOKUP(A76,'[1]R-Sq'!$E$1:$DB$108,108,FALSE) -> 0.0209 | D76: HC04 Human Development Index | E76: UN Development Programme | F76: http://hdr.undp.org | G76: YES
A77: BE27 Inflation, GDP Deflator | B77: =HLOOKUP(A77,'[1]R-Sq'!$E$1:$DB$108,108,FALSE) -> 0.0200 | D77: HC05 Citizens Domestic Purchasing Power | E77: UBS | F77: http://www.ubs.com/1/e/wealthmanagement/wealth_management_research/prices_earnings.html | G77: YES
A78: RF18 Good Country Index | B78: =HLOOKUP(A78,'[1]R-Sq'!$E$1:$DB$108,108,FALSE) -> 0.0197 | D78: HC06 Number of High Net Worth Individuals | E78: Capgemini | F78: http://www.uk.capgemini.com/thought-leadership/world-wealth-report-2013-from-capgemini-and-rbc-wealth-management
A79: HC03 Visa Restrictions Index | B79: =HLOOKUP(A79,'[1]R-Sq'!$E$1:$DB$108,108,FALSE) -> 0.0184 | D79: HC07 Homicide Rates | E79: UN Office of Drugs & Crime | F79: http://www.unodc.org/documents/gsh/pdfs/2014_GLOBAL_HOMICIDE_BOOK_web.pdf (Excel Data http://www.unodc.org/gsh/en/data.html)
A80: IF10 Railways per Land Area | B80: =HLOOKUP(A80,'[1]R-Sq'!$E$1:$DB$108,108,FALSE) -> 0.0168 | D80: HC08 Top Tourism Destinations | E80: Euromonitor | F80: http://blog.euromonitor.com/2015/01/top-100-city-destinations-ranking.html
A81: HC12 Health Care Index | B81: =HLOOKUP(A81,'[1]R-Sq'!$E$1:$DB$108,108,FALSE) -> 0.0157 | D81: HC09 Average precipitation in depth (mm per year) | E81: The World Bank | F81: http://data.worldbank.org/indicator/AG.LND.PRCP.MM | G81: NEW
A82: IF09 Roadways per Land Area | B82: =HLOOKUP(A82,'[1]R-Sq'!$E$1:$DB$108,108,FALSE) -> 0.0148 | D82: HC10 Quality of Living City Rankings | E82: Mercer | F82: http://www.mercer.com | G82: NEW
A83: HC13 Global Skills Index | B83: =HLOOKUP(A83,'[1]R-Sq'!$E$1:$DB$108,108,FALSE) -> 0.0144 | D83: HC11 Global Talent Index | E83: EIU | F83: http://www.economistinsights.com/search/node/global%20talent%20index%202011%202015
A84: HC20 Crime Index | B84: =HLOOKUP(A84,'[1]R-Sq'!$E$1:$DB$108,108,FALSE) -> 0.0130 | D84: HC12 Health Care Index | E84: Numbeo | F84: http://www.numbeo.com/health-care/rankings.jsp | G84: NEW
A85: FS05 Value of Bond Trading | B85: =HLOOKUP(A85,'[1]R-Sq'!$E$1:$DB$108,108,FALSE) -> 0.0103 | D85: HC13 Global Skills Index | E85: Hays | F85: http://www.hays-index.com/ | G85: YES
A86: RF10 RPI (% change on year ago) | B86: =HLOOKUP(A86,'[1]R-Sq'!$E$1:$DB$108,108,FALSE) -> 0.0102 | D86: HC14 Linguistic Diversity | E86: Ethnologue | F86: http://www.ethnologue.com/statistics/country | G86: YES
A87: HC14 Linguistic Diversity | B87: =HLOOKUP(A87,'[1]R-Sq'!$E$1:$DB$108,108,FALSE) -> 0.0084 | D87: HC15 Global Terrorism Index | E87: Institute for Economics & Peace | F87: http://www.visionofhumanity.org/ | G87: YES
A88: BE17 Global Peace Index | B88: =HLOOKUP(A88,'[1]R-Sq'!$E$1:$DB$108,108,FALSE) -> 0.0080 | D88: HC16 World Talent Rankings | E88: IMD | F88: http://www.imd.org/wcc/news-talent-report/ | G88: YES
A89: HC19 Quality of Life Index | B89: =HLOOKUP(A89,'[1]R-Sq'!$E$1:$DB$108,108,FALSE) -> 0.0072 | D89: HC17 Cost of Living City Rankings | E89: Mercer | F89: http://www.mercer.com
A90: RF03 Business Confidence Index | B90: =HLOOKUP(A90,'[1]R-Sq'!$E$1:$DB$108,108,FALSE) -> 0.0072 | D90: HC18 Health Outcomes and Cost | E90: EIU | F90: http://www.eiu.com/Handlers/WhitepaperHandler.ashx?fi=Healthcare-outcomes-index-2014.pdf&mode=wp&campaignid=Healthoutcome2014
A91: BE05 Global Services Location | B91: =HLOOKUP(A91,'[1]R-Sq'!$E$1:$DB$108,108,FALSE) -> 0.0072 | D91: HC19 Quality of Life Index | E91: Numbeo | F91: http://www.numbeo.com/quality-of-life/rankings.jsp | G91: YES
A92: RF23 FDI inward stock as a percentage of GDP | B92: =HLOOKUP(A92,'[1]R-Sq'!$E$1:$DB$108,108,FALSE) -> 0.0059 | D92: HC20 Crime Index | E92: Numbeo | F92: http://www.numbeo.com/crime/rankings.jsp# | G92: YES
A93: IF16 Global Sustainable Competitiveness Index | B93: =HLOOKUP(A93,'[1]R-Sq'!$E$1:$DB$108,108,FALSE) -> 0.0058
A94: BE15 Government Debt as % of GDP | B94: =HLOOKUP(A94,'[1]R-Sq'!$E$1:$DB$108,108,FALSE) -> 0.0041 | D94: Reputation & General | G94: Updated since GFCI 18
A95: HC01 Graduates in social Science, Business and Law (as % of total graduates) | B95: =HLOOKUP(A95,'[1]R-Sq'!$E$1:$DB$108,108,FALSE) -> 0.0028 | D95: Factor | E95: Source | F95: Website
A96: FS04 Broad Stock Index Levels | B96: =HLOOKUP(A96,'[1]R-Sq'!$E$1:$DB$108,108,FALSE) -> 0.0026 | D96: RF01 World Competitiveness Scoreboard | E96: IMD | F96: http://www.imd.ch/research/publications/wcy/competitiveness_scoreboard.cfmue
A97: BE12 Bilateral Tax Information Exchange Agreements | B97: =HLOOKUP(A97,'[1]R-Sq'!$E$1:$DB$108,108,FALSE) -> 0.0012 | D97: RF02 Global Competitiveness Index | E97: World Economic Forum | F97: http://www.weforum.org/en/initiatives/gcp/Global%20Competitiveness%20Report/index.htm | G97: YES
A98: BE25 Commonwealth Countries | B98: =HLOOKUP(A98,'[1]R-Sq'!$E$1:$DB$108,108,FALSE) -> 0.0010 | D98: RF03 Business Confidence Index | E98: Grant Thornton | F98: http://www.grantthornton.ie/Publications/International-Business-Report-(IBR)
A99: RF06 City to Country GDP Ratio | B99: =HLOOKUP(A99,'[1]R-Sq'!$E$1:$DB$108,108,FALSE) -> 0.0009 | D99: RF04 Foreign Direct Investment Inflows | E99: UNCTAD | F99: http://unctadstat.unctad.org/ReportFolders/reportFolders.aspx?sRF_ActivePath=P,5,27&sRF_Expanded=,P,5,27 | G99: YES
A100: HC15 Global Terrorism Index | B100: =HLOOKUP(A100,'[1]R-Sq'!$E$1:$DB$108,108,FALSE) -> 0.0005 | D100: RF05 FDI Confidence Index | E100: AT Kearney | F100: http://www.atkearney.com/research-studies/foreign-direct-investment-confidence-index
A101: HC02 Gross Tertiary Graduation Ratio | B101: =HLOOKUP(A101,'[1]R-Sq'!$E$1:$DB$108,108,FALSE) -> 0.0004 | D101: RF06 City to Country GDP Ratio | E101: The Brookings Institution | F101: http://www.brookings.edu/research/interactives/global-metro-monitor-3
A102: BE09 Employee Tax Rates | B102: =HLOOKUP(A102,'[1]R-Sq'!$E$1:$DB$108,108,FALSE) -> 0.0000 | D102: RF07 GDP per Person Employed | E102: The World Bank | F102: http://databank.worldbank.org/data/reports.aspx?source=world-development-indicators | G102: YES
A103: HC09 Average precipitation in depth (mm per year) | B103: =HLOOKUP(A103,'[1]R-Sq'!$E$1:$DB$108,108,FALSE) -> 0.0000 | D103: RF08 Global Innovation Index | E103: INSEAD | F103: http://www.globalinnovationindex.org/content.aspx?page=GII-Home | G103: YES
A104: RF15 Big Mac Index | B104: =HLOOKUP(A104,'[1]R-Sq'!$E$1:$DB$108,108,FALSE) -> 0.0000 | D104: RF09 Global Intellectual Property Index | E104: Taylor Wessing | F104: http://www.taylorwessing.com/ipindex/
A105: BE23 Press Freedom Index | B105: =HLOOKUP(A105,'[1]R-Sq'!$E$1:$DB$108,108,FALSE) -> 0.0000 | D105: RF10 RPI (% change on year ago) | E105: The Economist | F105: http://www.economist.com/markets/indicators/ | G105: YES
D106: RF11 Price Levels | E106: UBS | F106: http://www.ubs.com/1/e/wealthmanagement/wealth_management_research/prices_earnings.html | G106: YES
D107: RF12 Global Cities Index | E107: AT Kearney | F107: http://www.atkearney.com/research-studies/global-cities-index
D108: RF13 Number of International Association Meetings | E108: World Economic Forum | F108: http://www.weforum.org/en/initiatives/gcp/TravelandTourismReport/CompetitivenessIndex/index.htm
D109: RF14 Innovation Cities Global Index | E109: 2ThinkNow Innovation Cities | F109: http://www.innovation-cities.com/ | G109: YES
D110: RF15 Big Mac Index | E110: The Economist | F110: http://www.economist.com/content/big-mac-index | G110: YES
D111: RF16 Sustainable Economic Development | E111: Boston Consulting Group | F111: https://www.bcgperspectives.com/content/interactive/public_sector_globalization_interactive_map_sustainable_economic_development/
D112: RF17 Global Enabling Trade Report | E112: World Economic Forum | F112: http://www.weforum.org/issues/international-trade
D113: RF18 Good Country Index | E113: Good Country Party | F113: http://www.goodcountry.org/overall
D114: RF19 City Prosperity Index | E114: United Nations | F114: https://sustainabledevelopment.un.org/content/documents/745habitat.pdf
D115: RF20 Legatum Prosperity Index | E115: Legatum Institute | F115: http://www.prosperity.com/#!/ranking | G115: YES
D116: RF21 City Initiatives for Technology, Innovation and Entrepreneurship | E116: CITIE | F116: http://citie.org/2015-results/
D117: RF22 IESE cities in motion index | E117: IESE | F117: http://citiesinmotion.iese.edu/indicecim/?lang=en
D118: RF23 FDI Inflows to GDP | E118: UNCTAD | F118: http://unctad.org/en/Pages/DIAE/World%20Investment%20Report/Annex-Tables.aspx | G118: NEW
